{"text_format":"1","workbook":"xlsx","n_sheets":1,"sheets":["conceptos"],"not_rendered":{"charts":0,"images":2,"macros":1,"external_links":0,"defined_names":1,"comments":0,"pivot_tables":0},"unopened":[],"bounds":{"document_bytes":16777216,"sheet_cells":100000,"rows_first":2000,"rows_last":500,"rows_between":2000,"halvings":0,"cell_chars":16384,"cell_head_chars":4096},"cells_cut":0,"cells_raw":0,"read":"whole","date_system":"1900"}

{"sheet":"conceptos","index":0,"n_rows":282,"n_cols":8,"rows_kept":282,"cut":false,"hidden":false,"merged":[[279,0,279,4],[280,0,281,4],[13,0,13,6],[0,2,0,5],[9,2,9,5],[1,2,3,5],[4,2,4,3],[6,2,6,3],[7,2,7,3],[4,4,4,5],[5,4,5,5],[6,4,6,5],[7,4,7,5],[10,2,10,5],[11,2,11,5],[5,1,8,1]]}
[null,"GOBIERNO DEL ESTADO DE JALISCO","LICITACIÓN PÚBLICA ESTATAL"]
[null,"INSTITUTO DE LA INFRAESTRUCTURA FÍSICA EDUCATIVA DEL","INFEJAL-E-REM-B-CONA-06039-LP-0234-2020"]
[null,"ESTADO DE JALISCO"]
[]
[null,"DESCRIPCIÓN GENERAL DE LOS TRABAJOS:","FECHA DE INICIO:"]
[null,null,null,"FECHA DE TERMINACIÓN:"]
[null,null,"PLAZO DE EJECUCIÓN:"]
[null,null,"FECHA:"]
[]
[null,"RAZÓN SOCIAL DEL LICITANTE:","NOMBRE, CARGO Y FIRMA DEL LICITANTE:",null,null,null,"DOCUMENTO"]
[]
[]
[]
["PRESUPUESTO DE OBRA"]
[]
["CLAVE","DESCRIPCIÓN","UNIDAD","CANTIDAD","PRECIO UNITARIO ($)","PRECIO UNITARIO ($) CON LETRA","IMPORTE ($) M.N."]
["TRABAJO : BAS-CONA-06039","CONSTRUCCIÓN DE DOS AULAS DIDÁCTICAS, MURO-REJA PERIMETRAL, PATIO CÍVICO, OBRAS DE ACCESIBILIDAD E INSTALACIONES EN OBRA EXTERIOR EN EL CENTRO DE ATENCIÓN MÚLTIPLE EMMA GODOY LOBATO CCT 14EML0037V, UBICADO EN LA LOCALIDAD  CAJITITLÁN, MUNICIPIO DE TLAJOMULCO DE ZÚÑIGA, JALISCO.",null,null,null,null,{"$f":"TEXT(SUM(G18 + G122 + G148 + G154 + G160 + G189 + G212 + G228), \"$ #,##0.00 ;\")","v":"$ 0.00 "}]
["D","EDIFICIO D",null,null,null,null,{"$f":"TEXT(SUM(G19 + G23 + G30 + G50 + G63 + G74 + G76 + G80 + G93 + G99 + G103 + G110 + G120), \"$ #,##0.00 ;\")","v":"$ 0.00 "}]
["D.01(140)","DEMOLICIONES, DESMONTAJES Y MECANICA DE SUELOS    ",null,null,null,null,{"$f":"TEXT(SUM(G20:G22), \"$ #,##0.00 ;\")","v":"$ 0.00 "}]
[999127,"DESMANTELAMIENTO DE AULA PREFABRICADA DE ESTRUCTURA METALICA LAMINA O PVC DE INTRA-SYSTEM Y/O CALIFORNIANO CON RECUPERACION AL 100% INCLUYE: CORTE DE ELEMENTOS PARA ANCLAJE EN CIMENTACION A NIVEL DE PISO TERMINADO, REPARACION Y RESANES NECESARIOS EN PISO DE CONCRETO,  ESTRUCTURA, ACCESORIOS, CANCELERIA, PUERTAS, CRISTALES, CERRADURA, LAMPARAS, ARNES ELECTRICO, CUBIERTA,  HERRAMIENTAS, PLAFON,  MANO DE OBRA, SELECCION E IDENTIFICACION DE ELEMENTOS, ACOPIO Y MOVIMIENTOS DENTRO DE LA OBRA. SE CONSIDERARA PARA SU COBRO EL AREA DE PROYECCION DE LA CUBIERTA.","M2 ","124.4400",0,"CERO PESOS 00/100 M.N.",0,334139]
[999169,"MANIOBRAS DE CARGA, Y DESCARGA DE AULAS TIPO INTRA-SYSTEM, METALICA, PVC, CONVITEC, Y/O CALIFORNIANO, FABRICADA A BASE DE PERFILES METALICOS LAMINADOS,   INCLUYE: HERRAMIENTAS, MANO DE OBRA, LIMPIEZA, SELECCION E IDENTIFICACION DE ELEMENTOS, ACOPIO Y MOVIMIENTOS DENTRO DE LA OBRA.","M3 ","14.0000",0,"CERO PESOS 00/100 M.N.",0,334140]
[999170,"TRASLADO DE AULAS TIPO INTRA-SYSTEM, METALICA, PVC, CONVITEC, Y/O CALIFORNIANO, FABRICADA A BASE DE PERFILES METALICOS LAMINADOS,   INCLUYE: FLETES DESDE EL LUGAR DONDE FUE DESMONTADA A LUGAR DE SU NUEVA COLOCACION.","M3K","124.4400",0,"CERO PESOS 00/100 M.N.",0,334141]
["D.02(150)","TRABAJOS PRELIMINARES                             ",null,null,null,null,{"$f":"TEXT(SUM(G24:G29), \"$ #,##0.00 ;\")","v":"$ 0.00 "}]
[150020,"LIMPIEZA DE TERRENO RETIRANDO BASURA Y DESHIERBE FUERA DE LA OBRA. INCLUYE: HERRAMIENTAS, MANO DE OBRA, RECOLECCION, JUNTA Y RETIRO. (PROYECCION DE CUBIERTA).","M2 ","162.8000",0,"CERO PESOS 00/100 M.N.",0,334142]
[150110,"TRAZO Y NIVELACION DE EDIFICIOS ESTABLECIENDO REFERENCIAS DEFINITIVAS, CON TRANSITO Y NIVEL (EQUIPO TOPOGRAFICO), INCLUYE: PERSONAL TECNICO CALIFICADO, ESTACAS, MOJONERAS, LOCALIZACION DE ENTRE EJES, BANCOS DE NIVEL, MATERIALES PARA SEÑALAMIENTO, EQUIPO, HERRAMIENTA Y MANO DE OBRA.","M2 ","162.8000",0,"CERO PESOS 00/100 M.N.",0,334143]
[150210,"DESPALME DE TERRENO NATURAL POR CUALQUIER MEDIO, CON ESPESOR PROMEDIO DE 20 CM. INCLUYE: CARGA Y ACARREO DEL PRODUCTO FUERA DE LA OBRA, MANO DE OBRA, HERRAMIENTA Y EQUIPO. (PROYECCION DE CUBIERTA).","M2 ","162.8000",0,"CERO PESOS 00/100 M.N.",0,334144]
[152202,"EXCAVACION EN CEPAS POR CUALQUIER MEDIO, MATERIAL TIPO \"A\", DE 0 A 2.00 M. DE PROFUNDIDAD, EN SECO, INCLUYE: AFINE DE TALUDES Y FONDO, TRAPALEOS,  MOVIMIENTOS Y ACARREOS DENTRO DE LA OBRA, HERRAMIENTAS Y MANO DE OBRA, MEDIDO EN BANCO.","M3 ","43.6000",0,"CERO PESOS 00/100 M.N.",0,334145]
[152402,"EXCAVACION A CIELO ABIERTO POR CUALQUIER MEDIO, MATERIAL TIPO \"A\", DE 0 A 2.00 M. DE PROFUNDIDAD, EN SECO, INCLUYE: AFINE DE TALUDES Y FONDO, TRAPALEOS,  MOVIMIENTOS Y ACARREOS DENTRO DE LA OBRA, HERRAMIENTAS Y MANO DE OBRA, MEDIDO EN BANCO.","M3 ","65.2000",0,"CERO PESOS 00/100 M.N.",0,334146]
[156002,"CARGA POR CUALQUIER MEDIO Y ACARREO EN CAMION DE MATERIAL DE DESPERDICIO PRODUCTO DE LAS EXCAVACIONES FUERA DE LA OBRA, A LUGAR PERMITIDO POR LAS AUTORIDADES CORRESPONDIENTES, MEDIDO EN BANCO. INCLUYE CARGA,  ACARREO Y DESCARGA A TIRO LIBRE, HERRAMIENTA, EQUIPO, MATERIALES DE CONSUMO Y MANO DE OBRA.","M3 ","108.8000",0,"CERO PESOS 00/100 M.N.",0,334147]
["D.03(160)","CIMENTACION                                       ",null,null,null,null,{"$f":"TEXT(SUM(G31:G49), \"$ #,##0.00 ;\")","v":"$ 0.00 "}]
[160224,"PLANTILLA DE CONCRETO F'C=100 KG/CM2, TMA=3/4\", DE 6.00 CM DE ESPESOR PROMEDIO. INCLUYE: MATERIALES, HERRAMIENTAS, AFINE, NIVELACION, LIMPIEZA, MANO DE OBRA Y ACARREO DE MATERIALES AL SITIO DE SU UTILIZACION.","M2 ","53.6000",0,"CERO PESOS 00/100 M.N.",0,334148]
[167222,"DALA DE DESPLANTE DE CONCRETO F´C= 250 KG/CM2, T.M.A.= 3/4\", CON SECCION DE 14 X 30 CM., ARMADA CON 4 VARILLAS DEL #3 (3/8\") Y ESTRIBOS DEL #2 @ 20 CM., INCLUYE: ARMADO, COLADO, CURADO, VIBRADO, CIMBRA COMUN, DESCIMBRA, DESPERDICIOS, TRASLAPES, CRUCES DE VARILLAS CON ELEMENTOS TRANSVERSALES, ANDAMIOS, MANO DE OBRA, HERRAMIENTA Y ACARREO DE MATERIALES AL SITIO DE SU UTILIZACION, A CUALQUIER ALTURA.","ML ","22.6500",0,"CERO PESOS 00/100 M.N.",0,334149]
[170012,"CIMBRA  ACABADO COMUN, EN CIMENTACION, INCLUYE: DESPERDICIO, HABILITADO, CIMBRADO Y DESCIMBRA, NIVELACION, PLOMEO MATERIAL, MANO DE OBRA , LIMPIEZA, HERRAMIENTA, ACARREO DEL MATRIAL DENTRO Y FUERA DE LA OBRA.","M2 ","103.8000",0,"CERO PESOS 00/100 M.N.",0,334150]
[173001,"SUMINISTRO, HABILITADO, ARMADO Y COLOCACION DE ACERO DE REFUERZO FY=2,530 KG/CM2 (G.E.), DE 1/4\" ( # 2 ), EN CIMENTACION, INCLUYE: ALAMBRE, GANCHOS, ESCUADRAS, TRASLAPES Y DESPERDICIOS.","KG ","26.9000",0,"CERO PESOS 00/100 M.N.",0,334151]
[173003,"SUMINISTRO, HABILITADO, ARMADO Y COLOCACION DE ACERO DE REFUERZO FY=4,200 KG/CM2 (G.E.), DE 3/8\" ( #3 ), EN CIMENTACION, INCLUYE: MATERIALES, HABILITADO,  DOBLECES,  SILLETAS, ALAMBRE, GANCHOS, ESCUADRAS, TRASLAPES, DESPERDICIOS HERRAMIENTAS, MANO DE OBRA Y ACARREO DE MATERIALES AL SITIO DE SU COLOCACION.","KG ","620.0000",0,"CERO PESOS 00/100 M.N.",0,334152]
[173004,"SUMINISTRO, HABILITADO, ARMADO Y COLOCACION DE ACERO DE REFUERZO FY=4,200 KG/CM2 (G.E.), DE 1/2\" ( #4 ), EN CIMENTACION, INCLUYE: MATERIALES, HABILITADO,  DOBLECES,  SILLETAS, ALAMBRE, GANCHOS, ESCUADRAS, TRASLAPES, DESPERDICIOS HERRAMIENTAS, MANO DE OBRA Y ACARREO DE MATERIALES AL SITIO DE SU COLOCACION.","KG ","139.0000",0,"CERO PESOS 00/100 M.N.",0,334153]
[173005,"SUMINISTRO, HABILITADO, ARMADO Y COLOCACION DE ACERO DE REFUERZO FY=4,200 KG/CM2 (G.E.), DE 5/8\" (#5 ), EN CIMENTACION, INCLUYE: MATERIALES, HABILITADO,  DOBLECES,  SILLETAS, ALAMBRE, GANCHOS, ESCUADRAS, TRASLAPES, DESPERDICIOS HERRAMIENTAS, MANO DE OBRA Y ACARREO DE MATERIALES AL SITIO DE SU COLOCACION.","KG ","225.0000",0,"CERO PESOS 00/100 M.N.",0,334154]
[173006,"SUMINISTRO, HABILITADO, ARMADO Y COLOCACION DE ACERO DE REFUERZO FY=4,200 KG/CM2 (G.E.), DE 3/4\" (#6 ), EN CIMENTACION, INCLUYE: MATERIALES, HABILITADO,  DOBLECES,  SILLETAS, ALAMBRE, GANCHOS, ESCUADRAS, TRASLAPES, DESPERDICIOS HERRAMIENTAS, MANO DE OBRA Y ACARREO DE MATERIALES AL SITIO DE SU COLOCACION.","KG ","479.0000",0,"CERO PESOS 00/100 M.N.",0,334155]
[173008,"SUMINISTRO, HABILITADO, ARMADO Y COLOCACION DE ACERO DE REFUERZO FY=4,200 KG/CM2 (G.E.), DE 1\" (#8 ), EN CIMENTACION, INCLUYE: MATERIALES, HABILITADO,  DOBLECES,  SILLETAS, ALAMBRE, GANCHOS, ESCUADERAS, TRASLAPES, DESPERDICIOS HERRAMIENTAS, MANO DE OBRA Y ACARREO DE MATERIALES AL SITIO DE SU COLOCACION.","KG ","767.0000",0,"CERO PESOS 00/100 M.N.",0,334156]
[176118,"SUMINISTRO Y COLOCACION DE CONCRETO PREMEZCLADO BOMBEABLE F'C=250 KG/CM2, TMA= 3/4\", R.N. EN CIMENTACION. INCLUYE: BOMBEO, TENDIDO, RASTREADO, VIBRADO, NIVELACION, HERRAMIENTAS, LIMPIEZA, PRUEBAS DE RESISTENCIA,  CURADO CON CURACRETO ROJO,  DESPERDICIO Y MANO DE OBRA.","M3 ","14.4500",0,"CERO PESOS 00/100 M.N.",0,334157]
[180041,"AFINE Y CONFORMACION DE TERRENO NATURAL Y/O EN AREA DE CORTES, CON UN ESPESOR DE 15 CMS.,  AL 95% PROCTOR MEDIDO COMPACTO, REALIZADO EN FORMA MECANICA CON RODILLO VIBRATORIO, INCLUYE:SUMINISTRO DE AGUA PARA LOGRAR HUMEDAD OPTIMA, EQUIPO MECANICO, PRUEBAS DE COMPACTACION, AFINE, NIVELACION, HERRAMIENTAS Y MANO DE OBRA.","M2 ","162.8000",0,"CERO PESOS 00/100 M.N.",0,334158]
[180054,"RELLENO EN CEPAS POR CUALQUIER MEDIO, CON MATERIAL DE BANCO, (ARENA LIMOSA) COMPACTADO AL 95% PROCTOR, EN CAPAS DE 15 CM, MEDIDO COMPACTO. INCLUYE:  SUMINISTRO DE AGUA PARA LOGRAR HUMEDAD OPTIMA, DESPERDICIOS, TENDIDO, TRASPALEOS,  EQUIPO, PRUEBAS DE COMPACTACION, AFINE, NIVELACION, HERRAMIENTAS, MANO DE OBRA Y  ACARREO HASTA EL SITIO DE SU COLOCACION.  (VOLUMEN MEDIDO COMPACTADO).","M3 ","16.5000",0,"CERO PESOS 00/100 M.N.",0,334159]
[180103,"RELLENO COMPACTADO AL 95% PROCTOR, CON MATERIAL DE BANCO, EN CAPAS DE 15 CM DE ESPESOR, AGREGANDO AGUA PARA LOGRAR SU HUMEDAD OPTIMA, POR CUALQUIER MEDIO, INCLUYE: SUMINISTRO DE AGUA PARA LOGRAR HUMEDAD OPTIMA, TENDIDO, TRASPALEOS,  DESPERDICIOS, EQUIPO, PRUEBAS DE COMPACTACION, AFINE, NIVELACION, HERRAMIENTAS, MANO DE OBRA Y  ACARREO HASTA EL SITIO DE SU COLOCACION.  (VOLUMEN MEDIDO COMPACTADO).","M3 ","18.3000",0,"CERO PESOS 00/100 M.N.",0,334160]
[180223,"RELLENO COMPACTADO CON EQUIPO MECANICO DE SUELO-CEMENTO, A BASE DE MATERIAL DE BANCO (TEPETATE) EN PROPORCIÓN DE 120 KGS. DE CEMENTO GRIS POR M3. EN CEPAS O CAJON, A CUALQUIER PROFUNDIDAD, COMPACTADO AL 90%, EN CAPAS DE 15 CM. INCLUYE: SUMINISTRO DE AGUA PARA LOGRAR HUMEDAD OPTIMA, MEZCLADO, TENDIDO, EQUIPO, PRUEBAS DE COMPACTACION, HERRAMIENTAS, MANO DE OBRA Y  ACARREO HASTA EL SITIO DE SU COLOCACION. (MEDIDO EN BANCO).","M3 ","73.5000",0,"CERO PESOS 00/100 M.N.",0,334161]
[180234,"RELLENO COMPACTADO POR CUALQUIER MEDIO CON SUELO-CEMENTO (CON MATERIAL PRODUCTO DE EXCAVACION) EN PROPORCION DE 100 KGS. DE CEMENTO GRIS POR M3., A CUELQUIER PROFUNDIDAD, COMPACTADO AL 95% PROCTOR, EN CAPAS DE 15 CM. INCLUYE: SUMINISTRO DE MATERIAL, EXTENDIDO, TRAPALEOS, AGUA PARA LOGRAR HUMEDAD OPTIMA, EQUIPO, NIVELADO, HERRAMIENTAS, PRUEBAS DE COMPACTACION, MANO DE OBRA Y LOS ACARREOS AL SITIO DE SU COLOCACION.","M3 ","16.2000",0,"CERO PESOS 00/100 M.N.",0,334162]
[182014,"RELLENO COMPACTADO POR CUALQUIER MEDIO, CON GRAVA DE 1 1/2\" DE DIAMETRO, PARA ELIMINAR REBOTE ELASTICO EN BASE DE LA ZAPATA, ESTRUCTURA DE PISOS Y/O COMO FILTRO, EN CAPAS DE 15 CM. APROXIMADAMENTE, VOLUMEN MEDIDO YA COLOCADO, INCLUYE: MATERIALES, BANDEO, COMPACTACION, TENDIDO, EQUIPO,  NIVELADO, DESPERDICIOS, FLETES, TRASPALEOS, HERRAMIENTAS, MANO DE OBRA, CARGA Y ACARREO DE  MATERIAL AL SITIO DE SU COLOCACION.","M3 ","48.3000",0,"CERO PESOS 00/100 M.N.",0,334163]
[190022,"MURETE DE ENRRASE EN CIMENTACION CON BLOCK SOLIDO DE JALCRETO 11 X 14 X 28 CM DE SECCION, A SOGA, ASENTADO CON MORTERO CEMENTO-ARENA EN PROP. 1:3, ACABADO COMUN, INCLUYE:TRAZO, NIVELACION, PLOMEO, HERRAMIENTAS, DESPERDICIOS, MANO DE OBRA, LIMPIEZA Y ACARREO DE MATERIALES AL SITIO DE SU UTILIZACION.","M2 ","20.8500",0,"CERO PESOS 00/100 M.N.",0,334164]
[192508,"ANCLAJE DE CASTILLO EN CIMENTACION 14 X 20 CMS., CONCRETO F'C=250 KG/CM2, ARMADO CON 4 VARILLAS DEL #3 (3/8\") Y ESTRIBOS DEL #2 A CADA 15 CMS., INCLUYE: ARMADO, COLADO, CURADO, VIBRADO, CIMBRA COMUN, DESCIMBRA, DESPERDICIOS, TRASLAPES, CRUCES DE VARILLAS CON ELEMENTOS TRANSVERSALES, ANDAMIOS, MANO DE OBRA, HERRAMIENTA Y ACARREO DE MATERIALES AL SITIO DE SU UTILIZACION, A CUALQUIER ALTURA.","ML ","8.4000",0,"CERO PESOS 00/100 M.N.",0,334165]
[192511,"ANCLAJE DE CASTILLO EN CIMENTACION 14 X 15 CMS., CONCRETO F'C=250 KG/CM2, ARMADO CON 4 VARILLAS DEL #3 (3/8\") Y ESTRIBOS DEL #2 A CADA 15 CMS., INCLUYE: ARMADO, COLADO, CURADO, VIBRADO, CIMBRA COMUN, DESCIMBRA, DESPERDICIOS, TRASLAPES, CRUCES DE VARILLAS CON ELEMENTOS TRANSVERSALES, ANDAMIOS, MANO DE OBRA, HERRAMIENTA Y ACARREO DE MATERIALES AL SITIO DE SU UTILIZACION, A CUALQUIER ALTURA.","ML ","5.4000",0,"CERO PESOS 00/100 M.N.",0,334166]
["D.04(200)","ESTRUCTURA                                        ",null,null,null,null,{"$f":"TEXT(SUM(G51:G62), \"$ #,##0.00 ;\")","v":"$ 0.00 "}]
[210122,"CIMBRA DE MADERA, ACABADO APARENTE, EN COLUMNAS, INCLUYE: HABILITADO, CHAFLANES, CIMBRA, DESCIMBRA, HERRAMIENTAS, LIMPIEZAS, MANO DE OBRA  Y ACARREO DE MATERIALES AL SITIO DE SU UTILIZACION, A CUALQUIER NIVEL.","M2 ","46.8000",0,"CERO PESOS 00/100 M.N.",0,334167]
[210222,"CIMBRA DE MADERA, ACABADO APARENTE, EN TRABES, INCLUYE: HABILITADO, CHAFLANES, CIMBRA, DESCIMBRA, DESPERDICIOS,  HERRAMIENTAS, PUNTALES, ANDAMIOS, LIMPIEZAS, MANO DE OBRA  Y ACARREO DE MATERIALES AL SITIO DE SU UTILIZACION, A CUALQUIER NIVEL.","M2 ","105.2000",0,"CERO PESOS 00/100 M.N.",0,334168]
[210322,"CIMBRA DE MADERA, ACABADO APARENTE, EN LOSAS, INCLUYE: HABILITADO, CHAFLANES, CIMBRA, DESCIMBRA, GOTEROS, HERRAMIENTAS, LIMPIEZAS, MANO DE OBRA  Y ACARREO DE MATERIALES AL SITIO DE SU UTILIZACION, A CUALQUIER NIVEL.","M2 ","141.8000",0,"CERO PESOS 00/100 M.N.",0,334169]
[213003,"SUMINISTRO, HABILITADO, ARMADO Y COLOCACION DE ACERO DE REFUERZO FY=4,200 KG/CM2 (G.E.), DE 3/8\" (# 3 ), EN ESTRUCTURA, INCLUYE: MATERIALES, HABILITADO,  DOBLECES,  SILLETAS, ALAMBRE, GANCHOS, ESCUADRAS, TRASLAPES, DESPERDICIOS HERRAMIENTAS, MANO DE OBRA Y ACARREO DE MATERIALES AL SITIO DE SU COLOCACION.","KG ","2,087.0000",0,"CERO PESOS 00/100 M.N.",0,334170]
[213004,"SUMINISTRO, HABILITADO, ARMADO Y COLOCACION DE ACERO DE REFUERZO FY=4,200 KG/CM2 (G.E.), DE 1/2\" (# 4 ), EN ESTRUCTURA, INCLUYE: MATERIALES, HABILITADO,  DOBLECES,  SILLETAS, ALAMBRE, GANCHOS, ESCUADRAS, TRASLAPES, DESPERDICIOS HERRAMIENTAS, MANO DE OBRA Y ACARREO DE MATERIALES AL SITIO DE SU COLOCACION.","KG ","216.0000",0,"CERO PESOS 00/100 M.N.",0,334171]
[213005,"SUMINISTRO, HABILITADO, ARMADO Y COLOCACION DE ACERO DE REFUERZO FY=4,200 KG/CM2 (G.E.), DE 5/8\" (# 5 ), EN ESTRUCTURA, INCLUYE: MATERIALES, HABILITADO,  DOBLECES,  SILLETAS, ALAMBRE, GANCHOS, ESCUADRAS, TRASLAPES, DESPERDICIOS HERRAMIENTAS, MANO DE OBRA Y ACARREO DE MATERIALES AL SITIO DE SU COLOCACION.","KG ","210.0000",0,"CERO PESOS 00/100 M.N.",0,334172]
[213006,"SUMINISTRO, HABILITADO, ARMADO Y COLOCACION DE ACERO DE REFUERZO FY=4,200 KG/CM2 (G.E.), DE 3/4\" (#6 ) , EN ESTRUCTURA, INCLUYE: MATERIALES, HABILITADO,  DOBLECES,  SILLETAS, ALAMBRE, GANCHOS, ESCUADRAS, TRASLAPES, DESPERDICIOS HERRAMIENTAS, MANO DE OBRA Y ACARREO DE MATERIALES AL SITIO DE SU COLOCACION.","KG ","825.0000",0,"CERO PESOS 00/100 M.N.",0,334173]
[213008,"SUMINISTRO, HABILITADO, ARMADO Y COLOCACION DE ACERO DE REFUERZO FY=4,200 KG/CM2 (G.E.), DE 1\" (#8 ) , EN ESTRUCTURA, INCLUYE: MATERIALES, HABILITADO,  DOBLECES,  SILLETAS, ALAMBRE, GANCHOS, ESCUADRAS, TRASLAPES, SOLDADURA DESPERDICIOS HERRAMIENTAS, MANO DE OBRA Y ACARREO DE MATERIALES AL SITIO DE SU COLOCACION.","KG ","1,052.0000",0,"CERO PESOS 00/100 M.N.",0,334174]
[216922,"SUMINISTRO Y COLOCACION DE CONCRETO PREMEZCLADO BOMBEABLE, F'C=250 KG/CM2, T.M.A.= 3/4, R.N., EN COLUMNAS, INCLUYE: MATERIALES, FLETES, MANIOBRAS, BOMBEO, CURADO CON CURACRETO ROJO, VIBRADO, AFINE Y ACABADO REGLEADO,  DESPERDICIO, PRUEBAS DE RESISTENCIA Y MANO DE OBRA, A CUALQUIER NIVEL.","M3 ","4.2500",0,"CERO PESOS 00/100 M.N.",0,334175]
[216932,"SUMINISTRO Y COLOCACION DE CONCRETO PREMEZCLADO BOMB, F'C=250 KG/CM2, T.M.A.= 3/4, R.N., EN TRABES Y FALDONES, INCLUYE:MATERIALES, FLETES, MANIOBRAS, BOMBEO, CURADO CON CURACRETO ROJO, VIBRADO, AFINE Y ACABADO REGLEADO,  DESPERDICIO, PRUEBAS DE RESISTENCIA Y MANO DE OBRA, A CUALQUIER NIVEL.","M3 ","8.7000",0,"CERO PESOS 00/100 M.N.",0,334176]
[216942,"SUMINISTRO Y COLOCACION DE CONCRETO PREMEZCLADO BOMB, F'C=250 KG/CM2, T.M.A.= 3/4, R.N., EN LOSAS, INCLUYE: MATERIALES, FLETES, MANIOBRAS, BOMBEO, CURADO CON CURACRETO ROJO, VIBRADO, AFINE Y ACABADO REGLEADO,  DESPERDICIO, PRUEBAS DE RESISTENCIA Y MANO DE OBRA, A CUALQUIER NIVEL.","M3 ","16.4000",0,"CERO PESOS 00/100 M.N.",0,334177]
[322512,"ACABADO PULIDO Y/O APALILLADO FINO POR CUALQUIER MEDIO DE LOSA Y/O ELEMENTOS DE CONCRETO (GRADAS, PISOS, AZOTEAS Y/O ENTREPISOS DE CONCRETO), TERMINADO EN FORMA INTEGRAL, (SIN UTILIZAR PASTA),  INCLUYE: DESPERDICIOS, ACARREOS, REGLEADO, REMATES, JUNTAS FRIAS CON VOLTEADOR, HERRAMIENTAS Y MANO DE OBRA.","M2 ","162.1500",0,"CERO PESOS 00/100 M.N.",0,334178]
["D.05(310)","MUROS, CADENAS, CASTILLOS Y REPIZONES.            ",null,null,null,null,{"$f":"TEXT(SUM(G64:G73), \"$ #,##0.00 ;\")","v":"$ 0.00 "}]
[310172,"DALA DE CONCRETO F'C=250 KG/CM2, T.M.A.=3/4\", CON SECCION DE 14 X 15 CMS., ARMADA CON 4 VARILLAS DEL # 3 Y ESTRIBOS DEL NO. 2 @ 20 CMS., INCLUYE: ARMADO, COLADO, CURADO, VIBRADO, CIMBRA COMUN, DESCIMBRA, TRASLAPES, CRUCES DE VARILLAS CON ELEMENTOS TRANSVERSALES, DESPERDICIOS, MANO DE OBRA, HERRAMIENTA Y ACARREO DE MATERIALES AL SITIO DE SU UTILIZACION, A CUALQUIER ALTURA.","ML ","21.1200",0,"CERO PESOS 00/100 M.N.",0,334179]
[310210,"DALA DE CONCRETO F'C=250 KG/CM2, T.M.A.=3/4\", CON SECCION DE 14 X 20 CMS., ARMADA CON 4 VARILLAS DEL # 3 Y ESTRIBOS DEL NO. 2 @ 20 CMS., INCLUYE: ARMADO, COLADO, CURADO, VIBRADO, CIMBRA COMUN, DESCIMBRA, DESPERDICIOS, TRASLAPES, ESCUADRAS, CRUCE DE VARILLAS CON ELEMENTOS TRANSVERSALES, ANDAMIOS, MANO DE OBRA, HERRAMIENTA Y ACARREO DE MATERIALES AL SITIO DE SU UTILIZACION. A CUALQUIER ALTURA.","ML ","22.6500",0,"CERO PESOS 00/100 M.N.",0,334180]
[310538,"DALA DE CONCRETO F'C=250 KG/CM2, T.M.A.=3/4\", CON SECCION DE 14 X 10 CMS., SIN ARMAR, INCLUYE: COLADO, CURADO, VIBRADO, CIMBRA APARENTE, DESCIMBRA, DESPERDICIOS, MANO DE OBRA, HERRAMIENTA Y ACARREO DE MATERIALES AL SITIO DE SU UTILIZACION, A CUALQUIER ALTURA.","ML ","22.6500",0,"CERO PESOS 00/100 M.N.",0,334181]
[310544,"DALA DE CONCRETO F'C=250 KG/CM2, T.M.A.=3/4\", CON SECCION DE 14 X 20 CMS., SIN ARMAR INCLUYE: COLADO, CURADO, VIBRADO, CIMBRA APARENTE, DESCIMBRA, DESPERDICIOS, MANO DE OBRA, ANDAMIOS,  HERRAMIENTA Y ACARREO DE MATERIALES AL SITIO DE SU UTILIZACION, A CUALQUIER NIVEL","ML ","21.1200",0,"CERO PESOS 00/100 M.N.",0,334182]
[312212,"CASTILLO DE CONCRETO F'C=250 KG/CM2, T.M.A.=3/4\", CON SECCION DE 14 X 15 CMS., ARMADA CON 4 VARILLAS DEL # 3 Y ESTRIBOS DEL NO. 2 @ 15 CMS., INCLUYE: ARMADO, COLADO, CURADO, VIBRADO, CIMBRA COMUN, DESCIMBRA, DESPERDICIOS, TRASLAPES, CRUCES DE VARILLAS CON ELEMENTOS TRANSVERSALES, ANDAMIOS, MANO DE OBRA, HERRAMIENTA Y ACARREO DE MATERIALES AL SITIO DE SU UTILIZACION, A CUALQUIER ALTURA.","ML ","16.0600",0,"CERO PESOS 00/100 M.N.",0,334183]
[312246,"CASTILLO DE CONCRETO F'C=250 KG/CM2, T.M.A.=3/4\", CON SECCION DE 14 X 20 CMS., ARMADA CON 4 VARILLAS DEL # 3 Y ESTRIBOS DEL NO. 2 @ 20 CMS., INCLUYE: ARMADO, COLADO, CURADO, VIBRADO, CIMBRA COMUN, DESCIMBRA, DESPERDICIOS, MANO DE OBRA, HERRAMIENTA Y ACARREO DE MATERIALES AL SITIO DE SU UTILIZACION, A CUALQUIER ALTURA.","ML ","27.9600",0,"CERO PESOS 00/100 M.N.",0,334184]
[314032,"MURO DE TABIQUE DE LAMA, DE 14 CMS. DE ESPESOR PROMEDIO, A SOGA, CON TABIQUE DE LAMA 7 X 14 X 28 CMS., ACABADO COMUN, ASENTADO CON MORTERO CEMENTO-ARENA EN PROPORCION 1:3, EN CUALQUIER NIVEL, INCLUYE: TRAZO, NIVELACION, PLOMEO, ANDAMIOS, DESPERDICIOS, MANO DE OBRA, LIMPIEZA Y ACARREO DE MATERIALES AL SITIO DE SU UTILIZACION.","M2 ","61.2400",0,"CERO PESOS 00/100 M.N.",0,334185]
[344012,"IMPERMEABILIZACION DE CADENAS DE DESPLANTE EN MUROS, CON UNA CAPA DE EMULTEX (O SIMILAR), DOS CAPAS DE BITUMEX (O SIMILAR) Y UNA CAPA DE CRISTAFLEX (O SIMILAR).","ML ","46.1700",0,"CERO PESOS 00/100 M.N.",0,334186]
[344535,"CALAFATEO DE JUNTA DE CONTRACCION ELASTOMERICA ENTRE MUROS Y COLUMNA, A BASE SIKAFLEX-1A DE COLOR DE ACUERDO AL ACABADO DEL ELEMENTO, CON UNA SECCION TRANSVERSAL DE LA JUNTA 2 CM X 1.50 CM, INCLUYE: MATERIALES, DESPERDICIOS, LIMPIEZA, HERRAMIENTAS, MANO DE OBRA Y ACARREO DE MATERIALES. A CUALQUIER ALTURA.","ML ","99.0000",0,"CERO PESOS 00/100 M.N.",0,334187]
[360022,"SEPARACION MURO-COLUMNA CON CANAL LAMINA NO. 18 DE 28 CMS. DE  DESARROLLO,  PLACA  POLIESTITENO 3/4\" X 15 CM. ANCHO, FIJADA A COLUMNA, INCLUYE: ELEMENTOS DE FIJACION, MATERIALES MENORES, HERRAMIENTAS, DESPERDICIOS, PINTURA DE ESMALTE EN CANAL DE LAMINA, LIMPIEZA, MANO DE OBRA  Y ACARREOS AL SITIO DE SU INSTALACION.","ML ","12.3200",0,"CERO PESOS 00/100 M.N.",0,334188]
["D.06(319)","ENTREPISOS, CUBIERTA Y ACABADOS DE AZOTEA         ",null,null,null,null,{"$f":"TEXT(SUM(G75:G75), \"$ #,##0.00 ;\")","v":"$ 0.00 "}]
[344125,"IMPERMEABILIZACION DE MUROS O LOSAS, A BASE DE MEMBRANA PREFABRICADA, MCA. IMPERQUIMIA, UNIPLAS AERO PLUS SBS, ALTO DESEMPEÑO CON VENTILACION ANTIABOLSAMIENTOS, FABRICADA A BASE DE ASFALTOS MODIFICADOS CON POLIMEROS SINTETICOS SBS (ESTIRENO BUTADIENO ESTIRENO) REFORZADA CON MALLA POLIESTER DE ALTA RESISTENCIA, ACABADO APARENTE A BASE DE GRAVILLA ESMALTADA A FUEGO, 4.5 MM  DE ESPESOR TOTAL, COLOR ROJO TERRACOTA, GARANTIA POR ESCRITO DE 10 AÑOS, POR LA EMPRESA CONTRATISTA., INCLUYE: LIMPIEZA Y PREPARACION DE LA SUPERFICIE, APLICACION DE PRIMER IMPERCOAT PRIMARIO SL, PARA ANCLAJE Y TAPAPORO DE LA SUPERFICIE, SELLADO DE FISURAS Y GRIETAS A BASE DE CEMENTO PLASTICO BITUMINOSO IMPERCOAT CEMENTO SBS, SUMINISTRO Y COLOCACION DE MEMBRANA POR MEDIO DE TERMOFUSION A BASE DE FUEGO DE SOPLETE DE GAS BUTANO, HACIENDO TRASLAPES MINIMOS DE 0.10 MTS. EN AMBOS SENTIDOS, SELLADO DE ORILLAS, REMATES Y TRASLAPES, MATERIALES MENORES Y DE CONSUMO, CORTES, DESPERDICIOS, LIMPIEZA GENERAL, HERRAMIENTAS, MANO DE OBRA ESPECIALIZADA Y ACARREOS AL SITIO DE SU COLOCACION.","M2 ","162.1500",0,"CERO PESOS 00/100 M.N.",0,334189]
["D.07(355)","RECUBRIMIENTOS Y ACABADOS                         ",null,null,null,null,{"$f":"TEXT(SUM(G77:G79), \"$ #,##0.00 ;\")","v":"$ 0.00 "}]
[355022,"APLANADO DE MUROS Y/O TECHOS CON MORTERO CEMENTO-CAL-ARENA DE RIO EN PROP. 1:2:6 DE 2 CM. DE ESPESOR PROMEDIO, A PLOMO Y REGLA, ACABADO APALILLADO FINO, INCLUYE: MATERIALES, DESPERDICIOS, ANDAMIOS, HERRAMIENTAS, PLOMEO, NIVELACION, REMATES, LIMPIEZA DEL AREA DE TRABAJO Y ACARREO DE MATERIALES AL SITIO DE SU UTILIZACION. A CUALQUIER NIVEL.\n","M2 ","153.7800",0,"CERO PESOS 00/100 M.N.",0,334190]
[357322,"BOQUILLAS EN PUERTAS Y VENTANAS, CON MORTERO CEMENTO-CAL-ARENA 1:2:6, INCLUYE: ANDAMIOS Y ACARREO DE MATERIALES AL SITIO DE SU UTILIZACION.","ML ","22.8800",0,"CERO PESOS 00/100 M.N.",0,334191]
[357352,"FILETES Y BOLEADOS, HECHOS CON MORTERO CEMENTO-CAL-ARENA EN PROPORCION 1:2:6, INCLUYE: DESPERDICIOS, ANDAMIOS Y ACARREO DE MATERIALES AL SITIO DE SU UTILIZACION, A CUALQUIER NIVEL.","ML ","186.4200",0,"CERO PESOS 00/100 M.N.",0,334192]
["D.08(372)","PISOS                                             ",null,null,null,null,{"$f":"TEXT(SUM(G81:G92), \"$ #,##0.00 ;\")","v":"$ 0.00 "}]
[173003,"SUMINISTRO, HABILITADO, ARMADO Y COLOCACION DE ACERO DE REFUERZO FY=4,200 KG/CM2 (G.E.), DE 3/8\" ( #3 ), EN CIMENTACION, INCLUYE: MATERIALES, HABILITADO,  DOBLECES,  SILLETAS, ALAMBRE, GANCHOS, ESCUADRAS, TRASLAPES, DESPERDICIOS HERRAMIENTAS, MANO DE OBRA Y ACARREO DE MATERIALES AL SITIO DE SU COLOCACION.","KG ","66.0000",0,"CERO PESOS 00/100 M.N.",0,334193]
[344511,"SUMINISTRO Y COLOCACION DE JUNTA DE CONTRACCION ELASTOMERICA. EN PISOS CON UNA SECCION TRANSVERSAL DE 6 X 10 MM, A BASE DE SILICON DE COLOR PARA JUNTAS DE DILATACION, INCLUYE: LIMPIEZA DEL AREA A TRATAR, DESPERDICIOS Y ACARREO DEL MATERIAL AL SITIO DE SU COLOCACION.","ML ","27.7200",0,"CERO PESOS 00/100 M.N.",0,334194]
[360455,"HABILITADO, SUMINISTRO Y COLOCACION DE PASAJUNTAS EN PISOS DE CONCRETO CON VARILLA DE REDONDO LISO DE 5/8\" DE DIAMETRO Y 50 CM. LONGITUD, ENCAMISADA CON POLIDUCTO NARANJA DE 3/4\" DIAM. (VER DETALLE CONSTRUCTIVO Y LOCALIZACION EN PLANOS), INCLUYE: GRASA MECANICA EN MANGUERA, NIVELACION, ELEMENTOS DE SUJECION, DESPERDICIOS, HERRAMIENTAS Y MANO DE OBRA.","PZA","42.0000",0,"CERO PESOS 00/100 M.N.",0,334195]
[360565,"SUMINISTRO Y COLOCACION DE MALLA ELECTROSOLDADA 6X6-10/10 COMO REFUERZO EN PISOS DE CONCRETO, INCLUYE: DESPERDICIOS, TRASLAPES, HERRAMIENTA Y ACARREO DEL MATERIAL AL SITIO DE SU COLOCACION.","M2 ","128.2200",0,"CERO PESOS 00/100 M.N.",0,334196]
[372242,"FIRME DE CONCRETO F´C= 150 KG/CM2 TMA= 3/4\",  DE 8 CM DE ESPESOR, ACABADO APALILLADO. INCLUYE: TRAZO, NIVELACION, AFINE Y COMPACTACION DEL TERRENO, AGUA, MATERIALES, EXTENDIDO, REGLEADO, CURADO, DESPERDICIOS, HERRAMIENTAS, LIMPIEZA, MANO DE OBRA Y ACARREO DEL MATERIAL AL SITIO DE SU UTILIZACION","M2 ","100.2000",0,"CERO PESOS 00/100 M.N.",0,334197]
[373022,"PISO DE CONCRETO F'C=150 KG/CM², T.M.A. 3/4\", DE 0.10 M. DE ESPESOR, COLADO EN CUADROS NO MAYORES DE 3.00 ML POR LADO, INCLUYE: TRAZO, NIVELACION, AFINE Y COMPACTACION DEL TERRENO, AGUA, DESPERDICIOS, ACARREOS, REGLEADO, ACABADO INTEGRAL RAYADO CON BROCHA DE PELO (SIN UTILIZACION DE PASTA), CIMBRA EN FRONTERAS, DESCIMBRA, COLADO, CURADO, REMATES, ESCALONADO, MUESTREADO, JUNTAS FRIAS CON VOLTEADOR, HERRAMIENTAS Y MANO DE OBRA.","M2 ","27.4400",0,"CERO PESOS 00/100 M.N.",0,334198]
[373552,"CEJA DE CONCRETO F'C=250 KG/CM2, TMA=3/4\" DE 10.0 X 28.0 CM DE SECCION, ARMADA CON 2 VARILLAS #3 (3/8\") Y ESTRIBOS DE 1/4\" @ 25.0 CM, EN CUALQUIER NIVEL. INCLUYE: MATERIALES, CIMBRA APARENTE EN FRENTE Y DESCIMBRA, COLADO, VIBRADO, CURADO, PERFILADO, NIVELACION, HERRAMIENTAS, DESPERDICIOS, LIMPIEZAS Y MANO DE OBRA.","ML ","30.3600",0,"CERO PESOS 00/100 M.N.",0,334199]
[373766,"FORJADO DE NARIZ DE REMATE EN PISO DE  BANQUETAS, CON 10.0  X  10.0 CM. DE SECCION, INCLUYE SOLO: CIMBRA APARENTE, DESCIMBRA, GOTERO, FORJADO, CHAFLANES, PERFILADO, DESPERDICIOS, HERRAMIENTAS, Y MANO DE OBRA. (NO INCLUYE CONCRETO).","ML ","17.8200",0,"CERO PESOS 00/100 M.N.",0,334200]
[374202,"GUARNICION O MACHUELO DE CONCRETO FC=150 KG/CM2, CON UNA SECCION TRANSVERSAL 15 X 40 CMS., ARMADA CON 4 VARILLAS DEL #3 Y ESTRIBOS #2 A CADA 20 CMS. CON CIMBRA APARENTE POR CARA VISIBLE Y COMUN EN CARA OCULTA , INCLUYE: TRAZO, AFINE Y COMPACTACION DEL TERRENO EN AREA DE CONTACTO, CIMBRA Y DESCIMBRA, COLADO, VIBRADO, CURADO, MATERIALES, HERRAMIENTAS, LIMPIEZA DEL AREA DE TRABAJO, MANO DE OBRA Y ACARREO DE MATERIALES AL SITIO DE SU UTILIZACION.","ML ","17.1100",0,"CERO PESOS 00/100 M.N.",0,334201]
[376023,"SUMINISTRO Y COLOCACION DE PISO DE LOSETA CERAMICA DE 50 X 50 CM., MCA. INTERCERAMIC DE PRIMERA, LINEA SAYULITA, DE CUALQUIER COLOR, GRADO DE DUREZA (PEI) \"IV\" , ASENTADO CON PEGAPISO Y JUNTEDO CON JUNTEADOR DE COLOR, JUNTAS DE 4 MM. DE ANCHO, INCLUYE: TRAZO, CORTE, REMATES, ESCUADRE, DESPERDICIOS, DESPATINADO, EMBOQUILLADOS, CERTIFICADO DE CALIDAD, HERRAMIENTAS, MATERIALES, MANO DE OBRA, LIMPIEZA Y ACARREO DE MATERIALES AL SITIO DE SU UTILIZACION, A CUALQUIER ALTURA.","M2 ","100.2000",0,"CERO PESOS 00/100 M.N.",0,334202]
[376146,"SUMINISTRO Y COLOCACION DE CENEFA DE 15.00 CM APROXIMADAMENTE A BASE DE  PISO DE LOSETA CERAMICA DE PRIMERA, QUE DEBERA CUMPLIR CON LAS SIGUIENTES CARACTERISTICAS TECNICAS: ABSORCION <= 3% , COEFICIENTE DE ESTATICO DE FRICCION >= 0.5, MODULO DE RUPTURA >= 300 KG/CM², PEI, RESISTENCIA A LA ABRASION VISIBLE 1500 CICLOS (PEI IV), RESISTENTE AL MANCHADO, RESISTENCIA AL RAYADO >= 5.0 MOHS, RESISTENTE A LOS QUIMICOS, ASENTADO CON PEGA PISO Y JUNTEADO CON JUNTEADOR DE COLOR, CON JUNTAS DE 4.00 MM. DE ANCHO MINIMO. INCLUYE: HERRAMIENTAS, MATERIALES, TRAZO, CORTES,  NIVELACION,  LIMPIEZA, DESPERDICIOS, MANO DE OBRA Y ACARREO DE MATERIALES AL SITIO DE SU UTILIZACION.","ML ","2.4000",0,"CERO PESOS 00/100 M.N.",0,334203]
[378301,"SUMINISTRO E INSTALACION DE GUIA PODOTACTIL COLOR AMARILLO DE 30 CM DE ANCHO, ELABORADA A BASE TABLETAS DE ARCILLA POLISINTETICA DE 30 X 30 CM., PARA ALTO TRAFICO, ANTIBACTERIAL, ANTIGRAFITI, RESISTENTE A CAMBIOS BRUSCOS DE TEMPERATURA, MARCA ARQCCESIBLE O SIMILAR EN GARANTIA, CALIDAD Y ESPECIFICACIONES, INCLUYE: GUIAS DE ADVERTENCIA, TRAZO, ADHESIVOS, DESPERDICIOS, ACARREOS, LIMPIEZA, MANO DE OBRA, HERRAMIENTA Y MATERIALES.","ML ","18.0000",0,"CERO PESOS 00/100 M.N.",0,334204]
["D.09(393)","PINTURA                                           ",null,null,null,null,{"$f":"TEXT(SUM(G94:G98), \"$ #,##0.00 ;\")","v":"$ 0.00 "}]
[393010,"PINTURA VINIL-ACRÍLICA A BASE DE AGUA ACABADO SEMIMATE  LAVABLE, PARA INTERIORES Y EXTERIORES QUE NO DESPRENDA VAPORES TÓXICOS NI OLORES DESAGRADABLES, CON LAS SIGUIENTES CARACTERÍSTICAS ( SÓLIDOS POR PESO 46-52%, SÓLIDOS POR VOLUMEN 30-36%, VISCOSIDAD DE 100-130 UK A 25°C, DENSIDAD > O = 1.2 TON/M3., LAVABILIDAD > O = 4,000 CICLOS, TIEMPO DE SECADO AL TACTO, 30-40 MIN., TIEMPO DE SECADO DURO < O = 8 HRS., CICLO DE CURADO DE 7 DIAS, PH 6-8, RENDIMIENTO EN SUP. LISA 8-10 M2/LT., FINEZA DE MOLIDO (HEGMAN) 3-7 UH.)  EN CADENAS DE DESPLANTE, A UNA CARA, TRABAJO TERMINADO, A DOS MANOS, INCLUYE: MATERIALES MENORES Y DE CONSUMO, PREPARACION DE LA SUPERFICIE, SELLADO DE LA SUPERFICIE, HERRAMIENTAS, LIMPIEZA, MANO DE OBRA Y  ACARREOS DE MATERIALES AL SITIO DE SU UTILIZACION.","ML ","87.5400",0,"CERO PESOS 00/100 M.N.",0,334205]
[393022,"PINTURA VINIL-ACRÍLICA A BASE DE AGUA ACABADO SEMIMATE  LAVABLE, PARA INTERIORES Y EXTERIORES QUE NO DESPRENDA VAPORES TÓXICOS NI OLORES DESAGRADABLES, CON LAS SIGUIENTES CARACTERÍSTICAS ( SÓLIDOS POR PESO 46-52%, SÓLIDOS POR VOLUMEN 30-36%, VISCOSIDAD DE 100-130 UK A 25°C, DENSIDAD > O = 1.2 TON/M3., LAVABILIDAD > O = 4,000 CICLOS, TIEMPO DE SECADO AL TACTO, 30-40 MIN., TIEMPO DE SECADO DURO < O = 8 HRS., CICLO DE CURADO DE 7 DIAS, PH 6-8, RENDIMIENTO EN SUP. LISA 8-10 M2/LT., FINEZA DE MOLIDO (HEGMAN) 3-7 UH.)  EN MUROS APLANADOS DE MEZCLA APALILLADO O PULIDO, TRABAJO TERMINADO, A DOS MANOS, INCLUYE: MATERIALES MENORES Y DE CONSUMO, ANDAMIOS, PREPARACION DE LA SUPERFICIE, SELLADO DE LA SUPERFICIE, HERRAMIENTAS, LIMPIEZA, MANO DE OBRA Y  ACARREOS DE MATERIALES AL SITIO DE SU UTILIZACIÓN.","M2 ","153.7800",0,"CERO PESOS 00/100 M.N.",0,334206]
[393052,"PINTURA VINIL-ACRÍLICA A BASE DE AGUA ACABADO SEMIMATE  LAVABLE, PARA INTERIORES Y EXTERIORES QUE NO DESPRENDA VAPORES TÓXICOS NI OLORES DESAGRADABLES, CON LAS SIGUIENTES CARACTERÍSTICAS ( SÓLIDOS POR PESO 46-52%, SÓLIDOS POR VOLUMEN 30-36%, VISCOSIDAD DE 100-130 UK A 25°C, DENSIDAD > O = 1.2 TON/M3., LAVABILIDAD > O = 4,000 CICLOS, TIEMPO DE SECADO AL TACTO, 30-40 MIN., TIEMPO DE SECADO DURO < O = 8 HRS., CICLO DE CURADO DE 7 DIAS, PH 6-8, RENDIMIENTO EN SUP. LISA 8-10 M2/LT., FINEZA DE MOLIDO (HEGMAN) 3-7 UH.)  EN LOSAS Y ELEMENTOS DE CONCRETO, TRABAJO TERMINADO, A DOS MANOS, INCLUYE: MATERIALES MENORES Y DE CONSUMO, ANDAMIOS, PREPARACION DE LA SUPERFICIE DE CONCRETO, SELLADO DE LA SUPERFICIE, HERRAMIENTAS, LIMPIEZA, MANO DE OBRA Y  EQUIPO DE SEGURIDAD. A CUALQUIER ALTURA.","M2 ","289.8000",0,"CERO PESOS 00/100 M.N.",0,334207]
[393142,"PINTURA DE ESMALTE ALQUIDALICO ANTICORROSIVO, ACABADO BRILLANTE, PARA INTERIORES Y EXTERIORES QUE NO DESPRENDA VAPORES TÓXICOS NI OLORES DESAGRADABLES, CON LAS SIGUIENTES CARACTERÍSTICAS ( SÓLIDOS POR PESO 49-60%, SÓLIDOS POR VOLUMEN 40-46%, VISCOSIDAD DE 110-160 UK A 25°C, DENSIDAD 0.9-1.2 TON/M3., BRILLO A 60°C, 90%, TIEMPO DE SECADO AL TACTO, < O = 6 HRS., TIEMPO DE SECADO DURO < O = 24 HRS., ADHERENCIA 100%, RENDIMIENTO EN SUP. LISA 8-10 M2/LT., DILUCIÓN MÁXIMA (AGUARRÁS, THINER), 15 %,  EN HERRERIA ABIERTA DE PERFILES ESTRUCTURALES (PROTECCIONES), MEDIDA POR UN SOLO LADO, TRABAJO TERMINADO, A DOS MANOS, INCLUYE: MATERIALES MENORES Y DE CONSUMO, ANDAMIOS, PREPARACION DE LA SUPERFICIE, HERRAMIENTAS, LIMPIEZA, MANO DE OBRA Y  EQUIPO DE SEGURIDAD. A CUALQUIER NIVEL. (LA PINTURA ES POR AMBOS LADOS DE LA HERRERIA, PERO PARA SU PAGO ES MEDIDA SOLO POR 1 SOLO LADO).","M2 ","33.0600",0,"CERO PESOS 00/100 M.N.",0,334208]
[393525,"FABRICACION, SUMINISTRO E INSTALACION DE ROTULO DE IDENTIFICACION EN PUERTAS DE INGRESO A (SANITARIOS, DIRECCIONES, AULAS, ANEXOS, ETC.)  CON MEDIDAS GENERALES DE 40 X 20 CM., FABRICADOS A BASE DE ACRILICO SOLIDO DE 3 MM. DE ESPESOR, COLOR CRISTALINO, FORRADO CON VINIL ADHERIBLE OPACO, CON IMAGEN, TEXTO IMPRESO Y CODIGO BRAILLE AL MARGEN INFERIOR IZQUIERDO, INCLUYE: TRAZO, DISEÑO, MATERIALES, MARGEN IMPRESO DE 1 CM DE ANCHO,  ELEMENTOS DE FIJACION,  EQUIPO, HERRAMIENTA Y MANO DE OBRA. EN CUALQUIER NIVEL.","PZA","2.0000",0,"CERO PESOS 00/100 M.N.",0,334209]
["D.10(396)","LIMPIEZA                                          ",null,null,null,null,{"$f":"TEXT(SUM(G100:G102), \"$ #,##0.00 ;\")","v":"$ 0.00 "}]
[396012,"LIMPIEZA DE PISOS DE CONCRETO CON AGUA Y ACIDO MURIATICO AL 10%.","M2 ","27.4400",0,"CERO PESOS 00/100 M.N.",0,334210]
[396022,"LIMPIEZA EN PISO DE CERAMICA, CON AGUA Y JABON.","M2 ","100.2000",0,"CERO PESOS 00/100 M.N.",0,334211]
[396042,"LIMPIEZA DE VIDRIOS CON AGUA Y JABON, 2 CARAS.","M2 ","33.0600",0,"CERO PESOS 00/100 M.N.",0,334212]
["D.11(410)","CANCELERIA, HERRERIA, ALUMINIO, VIDRIOS Y CHAPAS  ",null,null,null,null,{"$f":"TEXT(SUM(G104:G109), \"$ #,##0.00 ;\")","v":"$ 0.00 "}]
[412041,"FABRICACION, SUMINISTRO Y COLOCACION DE PROTECCIONES PARA VENTANERIA A BASE DE HERRERIA ESTRUCTURAL DE ACERO, ELABORADA CON UN PERFIL PERIMETRAL DE ANGULO DE 1 1/2\" X 1 1/2\" X 3/16\",  HORIZONTALES DE REDONDO SOLIDO LISO DE 1/2\" SEPARADOS  DE C. A C. 11.5 CM. PROMEDIO Y REFUERZOS VERTICALES DE SOLERA DE 3/16\" X 1 1/4\" COLOCADOS A @ 73.5 CM. PROMEDIO, CON PERFORACIONES PARA INSERCION DE REDONDOS. ANCLADA A ESTRUCTURA (CONSTRUCCION) A BASE DE TORNILLO CON BARRENANCLA Y/O SOLDADURA,  INCLUYE: TRAZO, CORTES, SOLDADURA, NIVELACION, PLAMEO, PERFORACIONES, PINTURA DE TALLER,  AJUSTES Y DETALLES REALIZADOS EN OBRA DE ACUERDO A LO CONSTRUIDO,  ACARREOS, LIMPIEZA, MATERIALES, DESPERDICIOS, HERRAMIENTAS, EQUIPOS, MANO DE OBRA CALIFICADA Y ACARREO DE MATERIALES AL SITIO DE SU COLOCACION. EN CUALQUIER NIVEL.","M2 ","33.0600",0,"CERO PESOS 00/100 M.N.",0,334213]
[420022,"SUMINISTRO, HABILITADO Y COLOCACION DE CANCELERIA FABRICADA  EN ALUMINIO ANODIZADO NATURAL CON PERFILES COMERCIALES DE 2\" X 1.25\",  MCA. CUPRUM ,  LINEA PANORAMA O SIMILAR, INCLUYE: TRAZO, CORTES, AJUSTES, MATERIALES, CORREDERAS, JALADERAS, OPERADORES, REPISON, SELLADO PERIMETRAL, SILICON, VINIL, HERRAJES, ELEMENTOS DE FIJACION, MATERIALES MENORES Y DE CONSUMO, DESPERDICIOS, HERRAMIENTAS, MANO DE OBRA ESPECIALIZADA, LIMPIEZA, FLETES, EQUIPO Y ACARREO DE MATERIALES AL SITIO DE SU COLOCACION, A CUALQUIER NIVEL.","M2 ","33.0600",0,"CERO PESOS 00/100 M.N.",0,334214]
[422020,"SUMINISTRO Y COLOCACION DE PUERTA PREFABRICADA, CON MEDIDAS GENERALES DE 1.20 X 2.10 MTS.,  MCA. PORCELTECH O SIMILAR EN GARANTIA Y CALIDAD. MOD. BETA, TIPO TAMBOR DE 36 MM. DE ESPESOR, FABRICADA CON BASTIDOR DE PERFIL TUBULAR  GALVANIZADO DE 1 1/4\" , NUCLEO RELLENO CON PANEL HONEY COMB DE 1 3/8\" DE ESPESOR Y DOBLE CARA (INTERIOR-EXTERIOR) DE  LAMINA DE ACERO PORCELANIZADO CAL. 24,  EN COLOR INDICADO POR LA SUPERVISION Y CUBRECANTOS DE ALUMINIO ANODIZADO NATURAL , MARCO Y ANTEPECHO DE HERRERIA TUBULAR DE PERFILES COMERCIALES DE 3\" X 1 1/2\" CAL 14., TOPE DE ANGULO DE 3/4\" X 1/8\", INCLUYE: MARCO, HERRAJES, BISAGRAS, NIVELACION, PLOMEO, ELEMENTOS DE FIJACION, MATERIALES MENORES Y DE CONSUMO, SELLADO PERIMETRAL, HERRAMIENTAS, LIMPIZA, MANO DE OBRA, FLETES Y ACARREOS DE MATERIALES AL SITIO DE SU COLOCACION, EN CUALQUIER NIVEL.","PZA","2.0000",0,"CERO PESOS 00/100 M.N.",0,334215]
[424094,"SUMINISTRO Y COLOCACION DE CERRADURA TIPO EUROPEO PARA PUERTA EXTERIOR, MCA. JAKO, MOD. KIT9001ENT, FABRICADA EN ACERO INOXIDABLE CON ACABADO SATINADO, DOBLE MANIJA DE PERFIL TUBULAR REDONDO Y CILINDRO LLAVE-MARIPOSA, INCLUYE: TRAZO, TALADROS, ELEMENTOS DE FIJACION, HERRAMIENTAS, CILINDRO, CHAPETÓN, LLAVES, LIMPIEZA,  MANO DE OBRA Y  ACARREO DE MATERIAL AL SITIO DE SU UTILIZACION.","PZA","2.0000",0,"CERO PESOS 00/100 M.N.",0,334216]
[424322,"SUMINISTRO Y COLOCACION DE TOPES DE PISO PARA PUERTA. INC.: ACARREO DE MATERIAL AL SITIO DE SU UTILIZACION, A CUALQUIER NIVEL.","PZA","2.0000",0,"CERO PESOS 00/100 M.N.",0,334217]
[426010,"SUMINISTRO Y COLOCACION DE CRISTAL FLOTADO DE 6 MM. DE ESPESOR,  ASENTADO CON SILICON, INCLUYE: CORTES, DESPERDICIOS Y ACARREO DE MATERIALES AL SITIO DE SU UTILIZACION A CUALQUIER NIVEL.","M2 ","33.0600",0,"CERO PESOS 00/100 M.N.",0,334218]
["D.12(510)","INSTALACION ELECTRICA EN EDIFICIO                 ",null,null,null,null,{"$f":"TEXT(SUM(G111:G119), \"$ #,##0.00 ;\")","v":"$ 0.00 "}]
[514034,"SALIDA ELECTRICA DE CENTRO AISLADA OCULTA, CON TUBERIA Y CONEXIONES CONDUIT DE PVC. PESADO  DE AJUSTE DE 13 Y 19 MM. DE DIAMETRO, CABLE VINANEL THW-LS 600 V. A 75° C, 90° C, MARCA CONDUCTORES MONTERREY, (VIAKON-PROTOCOLIZADO), CABLE VINANEL 21 THW-LS 600 V. A 75° C, 90° C, MARCA CONDUMEX (CONDUMEX PROTOCOLIZADO).  CALIBRE 12 EN FASES Y 12 EN TIERRA FISICA, CAJAS DE REGISTRO  CUADRADAS, CHALUPAS Y TAPAS DE  PVC REFORZADO., INCLUYE: TRAZO, RANURAS, MATERIALES MENORES, HERRAMIENTA, MANO DE OBRA ESPECIALIZADA , CONEXIONES, LIMPIEZA DEL AREA DE TRABAJO, PRUEBAS, DESPERDICIOS Y ACARREO DEL MATERIAL AL SITIO DE SU COLOCACION, EN CUALQUIER NIVEL.","SAL","14.0000",0,"CERO PESOS 00/100 M.N.",0,334219]
[518046,"SALIDA ELECTRICA PARA CONTACTO MONOFÁSICO  DUPLEX POLARIZADO, OCULTA, CON TUBERIA Y CONEXIONES CONDUIT GALVANIZADA P.G., ETIQUETA VERDE DE AJUSTE DE 13 Y 19 MM. DE DIAMETRO,  CABLE VINANEL THW-LS 600 V. A 75° C, 90° C, MARCA CONDUCTORES MONTERREY, (VIAKON-PROTOCOLIZADO), CABLE VINANEL 21 THW-LS 600 V. A 75° C, 90° C, MARCA CONDUMEX (CONDUMEX PROTOCOLIZADO)., CAL.  12  EN FASES Y CAL. 12 PARA TIERRA FISICA, CAJAS DE REGISTRO  CUADRADAS, CHALUPAS Y TAPAS DE ACERO GALVANIZADO TIPO REFORZADO, CONTACTO QUINZIÑO MX, TAPA DE ALUMINIO, INCLUYE: TRAZO, RANURAS, CONEXION A TIERRA, MATERIALES MENORES, PRUEBAS, DESPERDICIOS, LIMPIEZAS, HERRAMIENTAS, MANO DE OBRA, Y ACARREO DEL MATERIAL AL SITIO DE SU COLOCACION, A CUALQUIER NIVEL.","SAL","10.0000",0,"CERO PESOS 00/100 M.N.",0,334220]
[522033,"SALIDA ELECTRICA PARA  APAGADOR SENCILLO, OCULTA, CON TUBERIA Y CONEXIONES CONDUIT DE PVC TIPO PESADO DE 13 Y 19 MM. DE DIAMETRO, CABLE VINANEL THW-LS 600 V. A 75° C, 90° C, MARCA CONDUCTORES MONTERREY, (VIAKON-PROTOCOLIZADO), CABLE VINANEL 21 THW-LS 600 V. A 75° C, 90° C, MARCA CONDUMEX (CONDUMEX PROTOCOLIZADO). CALIBRE 12, CAJAS CUADRADAS, CHALUPAS Y TAPAS DE PVC, APAGADOR QUINZIÑO, TAPA DE ALUMINIO, INCLUYE: RANURAS, MATERIALES MENORES, PRUEBAS, DESPERDICIOS Y ACARREO DEL MATERIAL AL SITIO DE SU COLOCACION, A CUALQUIER NIVEL.","SAL","4.0000",0,"CERO PESOS 00/100 M.N.",0,334221]
[542059,"SUMINISTRO Y COLOCACION DE CENTRO DE CARGA MARCA SQUARE- D TIPO QO-112L125G, 12 POLOS, 125 A. 1F, 3H, ZAPATAS, CAJA INTERIOR Y FRENTE QOC16U, INCLUYE: PRUEBAS, FLETES, MANO DE OBRA CALIFICADA, EQUIPO, HERRAMIENTA Y TODO LO NECESARIO PARA SU CORRECTA COLOCACION.","PZA","1.0000",0,"CERO PESOS 00/100 M.N.",0,334222]
[543012,"SUMINISTRO Y COLOCACION DE INTERRUPTOR TERMOMAGNETICO DERIVADO CON 1 POLOS, DE 15-60 AMPERES, MCA. SQUARE D, CAT. QO. INCLUYE: PRUEBAS, MATERIALES MENORES, HERRAMIENTAS, MANO DE OBRA ESPECIALIZADA  Y ACARREO DE MATERIALES AL SITIO DE SU COLOCACION.","PZA","3.0000",0,"CERO PESOS 00/100 M.N.",0,334223]
[543022,"SUMINISTRO Y COLOCACION DE INTERRUPTOR TERMOMAGNETICO DERIVADO CON 2 POLOS, DE 15-60 AMPERES, MCA. SQUARE D, CAT. QO. INCLUYE: PRUEBAS, MATERIALES MENORES, HERRAMIENTAS, MANO DE OBRA ESPECIALIZADA  Y ACARREO DE MATERIALES AL SITIO DE SU COLOCACION.","PZA","2.0000",0,"CERO PESOS 00/100 M.N.",0,334224]
[550221,"SUMINISTRO Y COLOCACION DE LUMINARIA HERMETICO DE SOBREPONER DE 2 X 16 WATTS, MCA. NOVALUX O SIMILAR, MOD. PISCIS, CAT. NVL-PIS-216-LED-P, EN GABINETE DE 1.27 X 0.17 MTS. FABRICADO EN RESINA POLIESTER Y FIBRA DE VIDRIO CON ACABADO A BASE DE PINTURA EN POLVO DE POLIESTER, APLICADA ELECTROSTATICAMENTE Y TERMOENDURECIDA, DIFUSOR DE ACRILICO DE ALTO IMPACTO TRANSPARENTE TERMOFORMADO, CON UNA REFLECTANCIA MINIMA DE 93%, IP-65 DISEÑADA A PRUEBA DE POLVO, VAPORES Y AGUA, PARA OPERAR CON DOS LAMPARA LED LINEAL T8, 16 WATTS CADA UNA, MULTIVOLTAJE 120-277 VOLTS , TEMPERATURA DE COLOR 4000°K, IRC>80,  VIDA UTIL DE 40,000 HRS., 2350 LUMENES TOTALES COMO MINIMO, DRIVER INTEGRADO , LA LUMINARIA (COMPLETA) DEBERA CUMPLIR CON LA NORMA ANCE, INCLUYE: MATERIALES DE FIJACION, LAMPARAS, PRUEBAS, COPIA DE CERTIFICACION ANCE ANEXA EN ELTRAMITE DE LA ESTIMACION, NIVELACION, MATERIALES MENORES Y DE CONSUMO, CONEXIONES, DESPERDICIOS, HERRAMIENTAS, ANDAMIOS, MANO DE OBRA, MATERIALES DE FIJACION, LIMPIEZA DEL AREA DE TRABAJO, Y ACARREO DE MATERIALES AL SITIO DE SU COLOCACION. A CUALQUIER ALTURA.","PZA","2.0000",0,"CERO PESOS 00/100 M.N.",0,334225]
[905630,"SUMINISTRO E INSTALACION DE LUMINARIO DE SOBREPONER MCA. HIGHLUMEN MOD. C-SBV20-S43TLC20-C, NOVALUX MOD. NOEII314.5LEDT8 MVSAPE, O SIMILAR, SISTEMA LED DE 45 WATTS. +- 8%, PARA OPERAR CON TRES TUBOS LED T8 (14-16 WATTS C/U), 4000°K, IRC>80, VIDA UTIL DE 40,000 HRS. 3600 LUMENES TOTALES COMO MINIMO, DRIVER INTEGRADO MULTIVOLTAJE 100-240 VOLTS , EN GABINETE METALICO FABRICADO EN LAMINA DE ACERO ROLADA EN FRIO CAL. 24 MINIMO, CON ACABADO EN POLVO POLIESTER EN APLICACION ELECTROSTÁTICA COLOR BLANCO, DIFUSOR ENVOLVENTE 100% ACRILICO, LA LUMINARIA (COMPLETA) DEBERA CUMPLIR CON LA NORMA ANCE, INCLUYE: ELEMENTOS DE FIJACION, CONEXION, MATERIALES MENORES Y DE CONSUMO, GARANTIAS, COPIA DE CERTIFICACION ANCE ANEXA EN ELTRAMITE DE LA ESTIMACION, HERRAMIENTAS, ANDAMIOS, MANO DE OBRA, PRUEBAS, LIMPIEZA Y ACARREOS.","PZA","12.0000",0,"CERO PESOS 00/100 M.N.",0,334226]
[910688,"SUMINISTRO Y COLOCACION DE FOTOCELDA PARA 1000 - 1500 WATTS, INCLUYE: BASE, RANURA EN MURO, CONEXION Y PRUEBAS.","PZA","1.0000",0,"CERO PESOS 00/100 M.N.",0,334227]
["D.13(530)","EQUIPOS E INSTALACIONES DE REDES DE VOZ Y DATOS.  ",null,null,null,null,{"$f":"TEXT(SUM(G121:G121), \"$ #,##0.00 ;\")","v":"$ 0.00 "}]
[524665,"SALIDA PARA EL SISTEMA DE RED DE VOZ Y/O DATOS, PARA SERVICIO A EQUIPOS DE COMPUTO EN LABORATORIO Y/O TALLER, FORMADA CON TUBERIA CONDUIT DE PVC TIPO PESADO DE 19, 25 Y 32 MM DE DIAM, CAJA REGISTRO GALVANIZADA DE 120 X 120 MM CON TAPA REALZADA EN SALIDAS DE MURO Y/O LOSA, GUIADAS CON ALAMBRE GALVANIZADO CAL NO. 14,  INCLUYE: TRAZO, RANURAS, MATERIALES MENORES Y DE CONSUMO, ELEMENTOS DE  FIJACION, HERRAMIENTAS, PRUEBAS, MANO DE OBRA Y ACARREO DE MATERIALES. (LONGITUD TOMADA DEL REGISTRO TELEFONICO AL SERVICIO-REGISTRO).","SAL","10.0000",0,"CERO PESOS 00/100 M.N.",0,334228]
["01","PLAZA Y ANDADORES",null,null,null,null,{"$f":"TEXT(SUM(G123 + G125 + G132 + G139 + G146), \"$ #,##0.00 ;\")","v":"$ 0.00 "}]
["01.01(140)","DEMOLICIONES, DESMONTAJES Y MECANICA DE SUELOS    ",null,null,null,null,{"$f":"TEXT(SUM(G124:G124), \"$ #,##0.00 ;\")","v":"$ 0.00 "}]
[140602,"DEMOLICION DE FIRME Y/O PISO DE CONCRETO DE 10 CM DE ESPESOR PROMEDIO, EN SECCIONES OBLIGADAS, INC. CORTE CON DISCO PARA DELIMITAR AREA DE DEMOLICION; MANO DE OBRA, HERRAMIENTA, EQUIPO,  CARGA Y ACARREO INTERIOR Y FUERA DE LA OBRA DEL MATERIAL PRODUCTO DE LA DEMOLICION.","M2 ","4.5000",0,"CERO PESOS 00/100 M.N.",0,334229]
["01.02(150)","TRABAJOS PRELIMINARES                             ",null,null,null,null,{"$f":"TEXT(SUM(G126:G131), \"$ #,##0.00 ;\")","v":"$ 0.00 "}]
[150020,"LIMPIEZA DE TERRENO RETIRANDO BASURA Y DESHIERBE FUERA DE LA OBRA. INCLUYE: HERRAMIENTAS, MANO DE OBRA, RECOLECCION, JUNTA Y RETIRO. (PROYECCION DE CUBIERTA).","M2 ","73.8000",0,"CERO PESOS 00/100 M.N.",0,334232]
[150120,"TRAZO Y NIVELACION DE EXTERIORES ESTABLECIENDO REFERENCIAS DEFINITIVAS, CON TRANSITO Y NIVEL (EQUIPO TOPOGRAFICO), INCLUYE: PERSONAL TECNICO CALIFICADO, ESTACAS, MOJONERAS, LOCALIZACION DE EJES Y/O ENTRE EJES, BANCOS DE NIVEL, MATERIALES PARA SEÑALAMIENTO, EQUIPO, HERRAMIENTA Y MANO DE OBRA.","M2 ","73.8000",0,"CERO PESOS 00/100 M.N.",0,334235]
[150210,"DESPALME DE TERRENO NATURAL POR CUALQUIER MEDIO, CON ESPESOR PROMEDIO DE 20 CM. INCLUYE: CARGA Y ACARREO DEL PRODUCTO FUERA DE LA OBRA, MANO DE OBRA, HERRAMIENTA Y EQUIPO. (PROYECCION DE CUBIERTA).","M2 ","73.8000",0,"CERO PESOS 00/100 M.N.",0,334238]
[152202,"EXCAVACION EN CEPAS POR CUALQUIER MEDIO, MATERIAL TIPO \"A\", DE 0 A 2.00 M. DE PROFUNDIDAD, EN SECO, INCLUYE: AFINE DE TALUDES Y FONDO, TRAPALEOS,  MOVIMIENTOS Y ACARREOS DENTRO DE LA OBRA, HERRAMIENTAS Y MANO DE OBRA, MEDIDO EN BANCO.","M3 ","2.4500",0,"CERO PESOS 00/100 M.N.",0,334240]
[152402,"EXCAVACION A CIELO ABIERTO POR CUALQUIER MEDIO, MATERIAL TIPO \"A\", DE 0 A 2.00 M. DE PROFUNDIDAD, EN SECO, INCLUYE: AFINE DE TALUDES Y FONDO, TRAPALEOS,  MOVIMIENTOS Y ACARREOS DENTRO DE LA OBRA, HERRAMIENTAS Y MANO DE OBRA, MEDIDO EN BANCO.","M3 ","29.5500",0,"CERO PESOS 00/100 M.N.",0,334242]
[156002,"CARGA POR CUALQUIER MEDIO Y ACARREO EN CAMION DE MATERIAL DE DESPERDICIO PRODUCTO DE LAS EXCAVACIONES FUERA DE LA OBRA, A LUGAR PERMITIDO POR LAS AUTORIDADES CORRESPONDIENTES, MEDIDO EN BANCO. INCLUYE CARGA,  ACARREO Y DESCARGA A TIRO LIBRE, HERRAMIENTA, EQUIPO, MATERIALES DE CONSUMO Y MANO DE OBRA.","M3 ","32.0000",0,"CERO PESOS 00/100 M.N.",0,334244]
["01.03(160)","CIMENTACION                                       ",null,null,null,null,{"$f":"TEXT(SUM(G133:G138), \"$ #,##0.00 ;\")","v":"$ 0.00 "}]
[162002,"CIMIENTO DE PIEDRA BRAZA ACOMODADA PIEDRA POR PIEDRA, ASENTADA CON MORTERO CEMENTO-ARENA  EN PROPORCION 1:3. INCLUYE: MATERIALES, DESPERDICIOS, HERRAMIENTAS, LIMPIEZA, MANO DE OBRA Y ACARREO DE MATERIALES AL SITIO DE SU UTILIZACION.","M3 ","4.2000",0,"CERO PESOS 00/100 M.N.",0,334247]
[162302,"RODAPIE DE PIEDRA BRAZA, ACABADO APARENTE UNA CARA, ASENTADA CON MORTERO CEMENTO-ARENA 1:3. INCLUYE: MATERIALES, HERRAMIENTAS, PLOMEO,   LIMPIEZA, MANO DE OBRA Y ACARREO DE MATERIALES AL SITIO DE SU UTILIZACION.","M3 ","2.8000",0,"CERO PESOS 00/100 M.N.",0,334251]
[162404,"NIVELACION DE MURO DE MAMPOSTERIA CON RAJUELA DE PIEDRA BRAZA JUNTEADA CON MORTERO CEM-ARE 1:3. DE 0.10 M. DE ESPESOR X 0.40 M. DE ANCHO PROMEDIO. INCLUYE: NIVELACION, TRAZO, MANO DE OBRA Y HERRAMIENTA. (NO INCLUYE MATERIALES)","ML ","17.5000",0,"CERO PESOS 00/100 M.N.",0,334253]
[180054,"RELLENO EN CEPAS POR CUALQUIER MEDIO, CON MATERIAL DE BANCO, (ARENA LIMOSA) COMPACTADO AL 95% PROCTOR, EN CAPAS DE 15 CM, MEDIDO COMPACTO. INCLUYE:  SUMINISTRO DE AGUA PARA LOGRAR HUMEDAD OPTIMA, DESPERDICIOS, TENDIDO, TRASPALEOS,  EQUIPO, PRUEBAS DE COMPACTACION, AFINE, NIVELACION, HERRAMIENTAS, MANO DE OBRA Y  ACARREO HASTA EL SITIO DE SU COLOCACION.  (VOLUMEN MEDIDO COMPACTADO).","M3 ","1.0500",0,"CERO PESOS 00/100 M.N.",0,334257]
[180223,"RELLENO COMPACTADO CON EQUIPO MECANICO DE SUELO-CEMENTO, A BASE DE MATERIAL DE BANCO (TEPETATE) EN PROPORCIÓN DE 120 KGS. DE CEMENTO GRIS POR M3. EN CEPAS O CAJON, A CUALQUIER PROFUNDIDAD, COMPACTADO AL 90%, EN CAPAS DE 15 CM. INCLUYE: SUMINISTRO DE AGUA PARA LOGRAR HUMEDAD OPTIMA, MEZCLADO, TENDIDO, EQUIPO, PRUEBAS DE COMPACTACION, HERRAMIENTAS, MANO DE OBRA Y  ACARREO HASTA EL SITIO DE SU COLOCACION. (MEDIDO EN BANCO).","M3 ","29.5000",0,"CERO PESOS 00/100 M.N.",0,334260]
[182014,"RELLENO COMPACTADO POR CUALQUIER MEDIO, CON GRAVA DE 1 1/2\" DE DIAMETRO, PARA ELIMINAR REBOTE ELASTICO EN BASE DE LA ZAPATA, ESTRUCTURA DE PISOS Y/O COMO FILTRO, EN CAPAS DE 15 CM. APROXIMADAMENTE, VOLUMEN MEDIDO YA COLOCADO, INCLUYE: MATERIALES, BANDEO, COMPACTACION, TENDIDO, EQUIPO,  NIVELADO, DESPERDICIOS, FLETES, TRASPALEOS, HERRAMIENTAS, MANO DE OBRA, CARGA Y ACARREO DE  MATERIAL AL SITIO DE SU COLOCACION.","M3 ","44.3000",0,"CERO PESOS 00/100 M.N.",0,334261]
["01.04(372)","PISOS                                             ",null,null,null,null,{"$f":"TEXT(SUM(G140:G145), \"$ #,##0.00 ;\")","v":"$ 0.00 "}]
[360455,"HABILITADO, SUMINISTRO Y COLOCACION DE PASAJUNTAS EN PISOS DE CONCRETO CON VARILLA DE REDONDO LISO DE 5/8\" DE DIAMETRO Y 50 CM. LONGITUD, ENCAMISADA CON POLIDUCTO NARANJA DE 3/4\" DIAM. (VER DETALLE CONSTRUCTIVO Y LOCALIZACION EN PLANOS), INCLUYE: GRASA MECANICA EN MANGUERA, NIVELACION, ELEMENTOS DE SUJECION, DESPERDICIOS, HERRAMIENTAS Y MANO DE OBRA.","PZA","48.0000",0,"CERO PESOS 00/100 M.N.",0,334270]
[360565,"SUMINISTRO Y COLOCACION DE MALLA ELECTROSOLDADA 6X6-10/10 COMO REFUERZO EN PISOS DE CONCRETO, INCLUYE: DESPERDICIOS, TRASLAPES, HERRAMIENTA Y ACARREO DEL MATERIAL AL SITIO DE SU COLOCACION.","M2 ","73.8000",0,"CERO PESOS 00/100 M.N.",0,334271]
[373022,"PISO DE CONCRETO F'C=150 KG/CM², T.M.A. 3/4\", DE 0.10 M. DE ESPESOR, COLADO EN CUADROS NO MAYORES DE 3.00 ML POR LADO, INCLUYE: TRAZO, NIVELACION, AFINE Y COMPACTACION DEL TERRENO, AGUA, DESPERDICIOS, ACARREOS, REGLEADO, ACABADO INTEGRAL RAYADO CON BROCHA DE PELO (SIN UTILIZACION DE PASTA), CIMBRA EN FRONTERAS, DESCIMBRA, COLADO, CURADO, REMATES, ESCALONADO, MUESTREADO, JUNTAS FRIAS CON VOLTEADOR, HERRAMIENTAS Y MANO DE OBRA.","M2 ","73.8000",0,"CERO PESOS 00/100 M.N.",0,334272]
[373766,"FORJADO DE NARIZ DE REMATE EN PISO DE  BANQUETAS, CON 10.0  X  10.0 CM. DE SECCION, INCLUYE SOLO: CIMBRA APARENTE, DESCIMBRA, GOTERO, FORJADO, CHAFLANES, PERFILADO, DESPERDICIOS, HERRAMIENTAS, Y MANO DE OBRA. (NO INCLUYE CONCRETO).","ML ","17.5000",0,"CERO PESOS 00/100 M.N.",0,334274]
[375339,"FORJADO DE ESCALON DE 30 CM. DE HUELLA Y 15 CM DE PERALTE CON RODAPIE DE PIEDRA, ASENTADO CON MORTERO CEMENTO-CAL-ARENA 1:3.:12 Y PISO DE CONCRETO F'C=150 KG/CM2 DE 10 CM DE ESPESOR, USAR VOLTEADOR EN LA PARTE SUPERIOR  EN HUELLA, ACABADO PULIDO Y/O APALILLADO, EL PERALTE TAMBIEN SERA FORJADO DE PIEDRA DE LAS MISMAS CARACTERISTICAS,  INCLUYE: LIMPIEZA, TRAZO, EXCAVACIONES, HERRAMIENTAS, MATERIALES, CIMENTACION, NIVELACION, CIMBRA APARENTE, DESCIMBRADO, DESPERDICIOS, COLADO, VIBRADO, CURADO, NARIZ PERIMETRAL, RELLENOS COMPACTADOS, MANO DE OBRA, Y ACARREO DEL MATERIAL AL SITIO DE SU UTILIZACION.","ML ","9.0000",0,"CERO PESOS 00/100 M.N.",0,334276]
[378301,"SUMINISTRO E INSTALACION DE GUIA PODOTACTIL COLOR AMARILLO DE 30 CM DE ANCHO, ELABORADA A BASE TABLETAS DE ARCILLA POLISINTETICA DE 30 X 30 CM., PARA ALTO TRAFICO, ANTIBACTERIAL, ANTIGRAFITI, RESISTENTE A CAMBIOS BRUSCOS DE TEMPERATURA, MARCA ARQCCESIBLE O SIMILAR EN GARANTIA, CALIDAD Y ESPECIFICACIONES, INCLUYE: GUIAS DE ADVERTENCIA, TRAZO, ADHESIVOS, DESPERDICIOS, ACARREOS, LIMPIEZA, MANO DE OBRA, HERRAMIENTA Y MATERIALES.","ML ","73.5000",0,"CERO PESOS 00/100 M.N.",0,334277]
["01.05(396)","LIMPIEZA                                          ",null,null,null,null,{"$f":"TEXT(SUM(G147:G147), \"$ #,##0.00 ;\")","v":"$ 0.00 "}]
[396012,"LIMPIEZA DE PISOS DE CONCRETO CON AGUA Y ACIDO MURIATICO AL 10%.","M2 ","17.5000",0,"CERO PESOS 00/100 M.N.",0,334282]
[52,"CANALES PARA AGUAS PLUVIALES",null,null,null,null,{"$f":"TEXT(SUM(G149 + G151), \"$ #,##0.00 ;\")","v":"$ 0.00 "}]
["52.01(140)","DEMOLICIONES, DESMONTAJES Y MECANICA DE SUELOS    ",null,null,null,null,{"$f":"TEXT(SUM(G150:G150), \"$ #,##0.00 ;\")","v":"$ 0.00 "}]
[917144,"DEMOLICION DE CANAL TRAPEZOIDAL PARA CAPTACION DE AGUAS PLUVIALES HECHO  A BASE DE CONCRETO CON 8 CMS. DE ESPESOR Y DIMENSIONES TRANSVERSALES LIBRES DE 30 CM EN LA BASE, 70 CM. EN LA PARTE SUPERIOR,  PROFUNDIDAD DE 30 CM. Y CEJAS LATERALES DE 20 CMS., INCLUYE: HERRAMIENTAS, MANO DE OBRA Y ACARREO DE MATERIAL PRODUCTO DE LA DEMOLICION AL LUGAR INDICADO POR LA SUPERVISION.","ML ","4.5000",0,"CERO PESOS 00/100 M.N.",0,334230]
["52.02(568)","INSTALACION RED PLUVIAL                           ",null,null,null,null,{"$f":"TEXT(SUM(G152:G153), \"$ #,##0.00 ;\")","v":"$ 0.00 "}]
[905991,"CONSTRUCCION DE BOCA DE TORMENTA DE 0.60 X 0.60 X 0.60 MTS., DE PROFUNDIDAD (MEDIDAS INTERIORES), FABRICADA CON MUROS DE BLOCK DE JALCRETO 11 X 14 X 28 CM, A SOGA, APLANADO POR EL INTERIOR CON MORTERO CEMENTO-ARENA EN PROP.: 1:3 ACABADO PULIDO, PLANTILLA DE DE CONCRETO F´C= 150 KG/CM2, DE 10 CM DE ESPESOR, ACABADO PULIDO,  MARCO Y CONTRAMARCO DE ANGULO DE 1 1/2\" X 1/8\", Y SOLERA DE 1 1/4\" X 1/8\" PARA FORMAR LA REJILLA, (VER DETALLES EN PLANOS) INCLUYE: DALAS DE DESPLANTE Y CORONACION, CASTILLOS, LOSA DE CONCRETO F´C= 200 KG/CM2 DE 10 CM DE ESPESOR, REFORZADA CON MALLA ELECTROSOLDADA 6X6 10/10, CIMBRA, DECIMBRA,  BOLEADOS, REMATES, CHAFLANES, DESPERDICIOS, EXCAVACIONES, RETIRO DE MATERIALES PRODUCTO DE EXCAVACION FUERA DE LA OBRA, HERRAMIENTAS, TRAZO, MANO DE OBRA, Y ACARREOS DE MATERIALES AL SITIO DE SU UTILIZACION.","PZA","2.0000",0,"CERO PESOS 00/100 M.N.",0,334304]
[934237,"ABRIR HUECO EN MAMPOSTERIA PARA LA COLOCACION DE TUBO DE P.V.C. DE 100 MM. DE DIAM. PARA DESAGÛE DE AGUAS PLUVIALES, INCLUYE: DEMOLICION EN MAMPOSTERIA EN FORMA MANUAL EN UNA SECCION DE 40 X 40 CMS. SUM. Y COL. DE TUBERIA DE P.V.C. SANITARIA DE 100 MM., RELLENO DE CONCRETO F'C= 150 KG/CM2, HERRAMIENTA Y MANO DE OBRA.","ML ","4.5000",0,"CERO PESOS 00/100 M.N.",0,334305]
["07","FOSA SEPTICA",null,null,null,null,{"$f":"TEXT(SUM(G155 + G157), \"$ #,##0.00 ;\")","v":"$ 0.00 "}]
["07.01(140)","DEMOLICIONES, DESMONTAJES Y MECANICA DE SUELOS    ",null,null,null,null,{"$f":"TEXT(SUM(G156:G156), \"$ #,##0.00 ;\")","v":"$ 0.00 "}]
[929073,"RANURADO DE PISOS, LOSETA DE CERAMICA Y/O FIRMES DE CONCRETO SIMPLE, CON UNA SECCION TRANSVERSAL DE 30 X 30 CM. EN PROMEDIO, PARA LA COLOCACION DE TUBERIAS DE INSTALACIONES INCLUYE: TRAZO, HERRAMIENTA, MANO DE OBRA, RESANADO CON MORTERO CEM-ARENA EN PROP: 1:5 CON RECUBRIMIENTOS Y ACABADOS IGUALES A LOS EXISTENTES, ACARREO Y RETIRO DE MATERIAL PRODUCTO DE LA DEMOLICION FUERA DE OBRA Y TODO LO NECESARIO PARA SU CORRECTA EJECUCION.","ML ","3.0000",0,"CERO PESOS 00/100 M.N.",0,334231]
["07.02(565)","INSTALACION HIDRAULICA, SANITARIA Y GAS EN O. EXT.",null,null,null,null,{"$f":"TEXT(SUM(G158:G159), \"$ #,##0.00 ;\")","v":"$ 0.00 "}]
[585014,"SUMINISTRO Y COLOCACION DE TUBO DE P.V.C. SANITARIO (ANGER)  SERIE 25, CAMPANA, DE 6\" (150 MM) DIAM., INCLUYE: CONEXIONES, TRAZO, EXCAVACION,  PASOS POR CIMENTACION, CAMA DE ARENA, RELLENO COMPACTADO, DESPERDICIOS, PRUEBAS Y ACARREO DE MATERIALES AL SITIO DE SU COLOCACION.","ML ","20.0000",0,"CERO PESOS 00/100 M.N.",0,334301]
[910761,"SUMINISTRO E INSTALACION DE BIODIGESTOR AUTOLIMPIABLE PREFABRICADO DE 3000 LTS. DE CAPACIDAD, MARCA ROTOPLAS, CON MEDIDAS GENERALES DE 2.15 MTS DE ALTURA Y 2.00 MTS. DE DIAMETRO, INCLUYE: TRAZO, EXCAVACIONES EN MATERIAL TIPO \"A\" O \"B\", NIVELACION, CONEXION DE DRENAJE TANTO DE INGRESO COMO DE SALIDA, RELLENO COMPACTADO AL 90 % PROCTOR, CON MATERIAL DE BANCO, EN CAPAS DE 20 CM DE ESPESOR,  REGISTRO  DE 0.60 X 0.60 X 0.80 M, CON MURO DE LADRILLO DE LAMA DE 7 X 14 X 28 CM, ASENTADO CON MORTERO CEMENTO-ARENA 1:5, APLANADO CON MORTERO CEMENTO-ARENA DE RIO 1:5, TAPA DE CONCRETO F'C=200 KG/CM2, MARCO Y CONTRAMARCO DE ANGULO DE 1 1/2\" X 1/8\", DESPERDICIOS, MATERIALES MENORES, EQUIPO, LIMPIEZAS, HERRAMIENTA, MANO DE OBRA Y ACARREO DE MATERIALES AL SITIO DE SU COLOCACION.","PZA","1.0000",0,"CERO PESOS 00/100 M.N.",0,334303]
["33B","MURO REJA",null,null,null,null,{"$f":"TEXT(SUM(G161 + G166 + G173 + G177 + G180 + G183 + G186), \"$ #,##0.00 ;\")","v":"$ 0.00 "}]
["33B.01(150)","TRABAJOS PRELIMINARES                             ",null,null,null,null,{"$f":"TEXT(SUM(G162:G165), \"$ #,##0.00 ;\")","v":"$ 0.00 "}]
[150020,"LIMPIEZA DE TERRENO RETIRANDO BASURA Y DESHIERBE FUERA DE LA OBRA. INCLUYE: HERRAMIENTAS, MANO DE OBRA, RECOLECCION, JUNTA Y RETIRO. (PROYECCION DE CUBIERTA).","M2 ","29.8000",0,"CERO PESOS 00/100 M.N.",0,334233]
[150120,"TRAZO Y NIVELACION DE EXTERIORES ESTABLECIENDO REFERENCIAS DEFINITIVAS, CON TRANSITO Y NIVEL (EQUIPO TOPOGRAFICO), INCLUYE: PERSONAL TECNICO CALIFICADO, ESTACAS, MOJONERAS, LOCALIZACION DE EJES Y/O ENTRE EJES, BANCOS DE NIVEL, MATERIALES PARA SEÑALAMIENTO, EQUIPO, HERRAMIENTA Y MANO DE OBRA.","M2 ","29.8000",0,"CERO PESOS 00/100 M.N.",0,334236]
[152204,"EXCAVACION EN CEPAS POR CUALQUIER MEDIO, MATERIAL TIPO \"B\", DE 0 A 2.00 M. DE PROFUNDIDAD, EN SECO, INCLUYE: AFINE DE TALUDES Y FONDO, TRASPALEOS,  MOVIMIENTOS Y ACARREOS DENTRO DE LA OBRA, HERRAMIENTAS Y MANO DE OBRA, MEDIDO EN BANCO.","M3 ","14.9000",0,"CERO PESOS 00/100 M.N.",0,334241]
[156002,"CARGA POR CUALQUIER MEDIO Y ACARREO EN CAMION DE MATERIAL DE DESPERDICIO PRODUCTO DE LAS EXCAVACIONES FUERA DE LA OBRA, A LUGAR PERMITIDO POR LAS AUTORIDADES CORRESPONDIENTES, MEDIDO EN BANCO. INCLUYE CARGA,  ACARREO Y DESCARGA A TIRO LIBRE, HERRAMIENTA, EQUIPO, MATERIALES DE CONSUMO Y MANO DE OBRA.","M3 ","14.9000",0,"CERO PESOS 00/100 M.N.",0,334245]
["33B.02(160)","CIMENTACION                                       ",null,null,null,null,{"$f":"TEXT(SUM(G167:G172), \"$ #,##0.00 ;\")","v":"$ 0.00 "}]
[162002,"CIMIENTO DE PIEDRA BRAZA ACOMODADA PIEDRA POR PIEDRA, ASENTADA CON MORTERO CEMENTO-ARENA  EN PROPORCION 1:3. INCLUYE: MATERIALES, DESPERDICIOS, HERRAMIENTAS, LIMPIEZA, MANO DE OBRA Y ACARREO DE MATERIALES AL SITIO DE SU UTILIZACION.","M3 ","14.9000",0,"CERO PESOS 00/100 M.N.",0,334248]
[162116,"MAMPOSTERIA DE PIEDRA BRAZA, ACABADO APARENTE DOS CARAS DE 0 A 1.50 MTS, ASENTADA CON  CEMENTO-ARENA 1:3, INCLUYE: MATERIALES, HERRAMIENTAS, PLOMEO,  LIMPIEZA, MANO DE OBRA Y ACARREO DE MATERIALES AL SITIO DE SU UTILIZACION.","M3 ","13.4000",0,"CERO PESOS 00/100 M.N.",0,334250]
[162404,"NIVELACION DE MURO DE MAMPOSTERIA CON RAJUELA DE PIEDRA BRAZA JUNTEADA CON MORTERO CEM-ARE 1:3. DE 0.10 M. DE ESPESOR X 0.40 M. DE ANCHO PROMEDIO. INCLUYE: NIVELACION, TRAZO, MANO DE OBRA Y HERRAMIENTA. (NO INCLUYE MATERIALES)","ML ","49.6500",0,"CERO PESOS 00/100 M.N.",0,334254]
[167204,"DALA DE DESPLANTE DE CONCRETO F´C= 150 KG/CM2, T.M.A.= 3/4\", CON SECCION DE 14 X 20 CM., ARMADA CON 4 VARILLAS DEL #3 Y ESTRIBOS DEL #2 @ 20 CM., INCLUYE: ARMADO, COLADO, CURADO, VIBRADO, CIMBRA COMUN, DESCIMBRA, DESPERDICIOS, TRASLAPES, CRUCES DE VARILLAS CON ELEMENTOS TRANSVERSALES, ANDAMIOS, MANO DE OBRA, HERRAMIENTA Y ACARREO DE MATERIALES AL SITIO DE SU UTILIZACION, A CUALQUIER ALTURA.","ML ","24.8000",0,"CERO PESOS 00/100 M.N.",0,334256]
[180102,"RELLENO COMPACTADO AL 90 % PROCTOR, CON MATERIAL DE BANCO, EN CAPAS DE 20 CM DE ESPESOR, AGREGANDO AGUA PARA LOGRAR SU HUMEDAD OPTIMA, AL 90%. POR CUALQUIER MEDIO, INCLUYE: SUMINISTRO DE AGUA PARA LOGRAR HUMEDAD OPTIMA, TENDIDO, TRASPALEOS,  DESPERDICIOS, EQUIPO, PRUEBAS DE COMPACTACION, AFINE, NIVELACION, HERRAMIENTAS, MANO DE OBRA Y  ACARREO HASTA EL SITIO DE SU COLOCACION.  (VOLUMEN MEDIDO COMPACTADO).","M3 ","1.6500",0,"CERO PESOS 00/100 M.N.",0,334258]
[192810,"BASE PARA CASTILLO DE 40.0 X 40.0 X 50.0 CM, EN CIMENTACION DE PIEDRA, CON CONCRETO F'C=150 KG/CM2, TMA=3/4\", CON 4 VARILLAS DE 3/8\" DE DIAMETRO Y ESTRIBOS DE 1/4\" @ 15.0 CM. CIMBRA COMUN,  INCLUYE: CIMBRADO Y DESCIMBRADO, COLADO, VIBRADO, CURADO, MATERIALES, DESPERDICIOS, HERRAMIENTAS, LIMPIEZA, MANO DE OBRA Y ACARREO DE MATERIALES AL SITIO DE SU UTILIZACION.","PZA","16.0000",0,"CERO PESOS 00/100 M.N.",0,334263]
["33B.03(310)","MUROS, CADENAS, CASTILLOS Y REPIZONES.            ",null,null,null,null,{"$f":"TEXT(SUM(G174:G176), \"$ #,##0.00 ;\")","v":"$ 0.00 "}]
[310207,"DALA DE CONCRETO F'C=150 KG/CM2, T.M.A.=3/4\", CON SECCION DE 14 X 15 CMS., ARMADA CON 4 VARILLAS DEL # 3 Y ESTRIBOS DEL NO. 2 @ 15 CMS., INCLUYE: ARMADO, COLADO, CURADO, VIBRADO, CIMBRA COMUN, DESCIMBRA, TRASLAPES, CRUCES DE VARILLAS CON ELEMENTOS TRANSVERSALES, DESPERDICIOS, MANO DE OBRA, HERRAMIENTA Y ACARREO DE MATERIALES AL SITIO DE SU UTILIZACION, A CUALQUIER ALTURA.","ML ","24.8000",0,"CERO PESOS 00/100 M.N.",0,334264]
[312244,"CASTILLO DE CONCRETO F'C=150 KG/CM2, T.M.A.=3/4, CON SECCION DE 14 X 20 CMS., ARMADA CON 4 VARILLAS DEL # 3 Y ESTRIBOS DEL NO. 2 @ 20 CMS., INCLUYE:  ARMADO, COLADO, CURADO, VIBRADO, CIMBRA COMUN, DESCIMBRA, TRASLAPES, CRUCES DE VARILLAS CON ELEMENTOS TRANSVERSALES, DESPERDICIOS, MANO DE OBRA, HERRAMIENTA, ANDAMIOS,  Y ACARREO DE MATERIALES AL SITIO DE SU UTILIZACION, A CUALQUIER ALTURA.","ML ","33.9000",0,"CERO PESOS 00/100 M.N.",0,334266]
[314032,"MURO DE TABIQUE DE LAMA, DE 14 CMS. DE ESPESOR PROMEDIO, A SOGA, CON TABIQUE DE LAMA 7 X 14 X 28 CMS., ACABADO COMUN, ASENTADO CON MORTERO CEMENTO-ARENA EN PROPORCION 1:3, EN CUALQUIER NIVEL, INCLUYE: TRAZO, NIVELACION, PLOMEO, ANDAMIOS, DESPERDICIOS, MANO DE OBRA, LIMPIEZA Y ACARREO DE MATERIALES AL SITIO DE SU UTILIZACION.","M2 ","45.9000",0,"CERO PESOS 00/100 M.N.",0,334267]
["33B.04(355)","RECUBRIMIENTOS Y ACABADOS                         ",null,null,null,null,{"$f":"TEXT(SUM(G178:G179), \"$ #,##0.00 ;\")","v":"$ 0.00 "}]
[355022,"APLANADO DE MUROS Y/O TECHOS CON MORTERO CEMENTO-CAL-ARENA DE RIO EN PROP. 1:2:6 DE 2 CM. DE ESPESOR PROMEDIO, A PLOMO Y REGLA, ACABADO APALILLADO FINO, INCLUYE: MATERIALES, DESPERDICIOS, ANDAMIOS, HERRAMIENTAS, PLOMEO, NIVELACION, REMATES, LIMPIEZA DEL AREA DE TRABAJO Y ACARREO DE MATERIALES AL SITIO DE SU UTILIZACION. A CUALQUIER NIVEL.\n","M2 ","116.7000",0,"CERO PESOS 00/100 M.N.",0,334268]
[357322,"BOQUILLAS EN PUERTAS Y VENTANAS, CON MORTERO CEMENTO-CAL-ARENA 1:2:6, INCLUYE: ANDAMIOS Y ACARREO DE MATERIALES AL SITIO DE SU UTILIZACION.","ML ","63.7000",0,"CERO PESOS 00/100 M.N.",0,334269]
["33B.05(372)","PISOS                                             ",null,null,null,null,{"$f":"TEXT(SUM(G181:G182), \"$ #,##0.00 ;\")","v":"$ 0.00 "}]
[373502,"CEJA DE CONCRETO F'C=150 KG/CM2, TMA=3/4\" DE 12.0 X 18.0 CM DE SECCION PROMEDIO, ARMADA CON 1 VARILLA #3 (3/8\") Y ESTRIBOS DE 1/4\" @ 25.0 CM, EN CUALQUIER NIVEL. INCLUYE: CIMBRA APARENTE, DESCIMBRA, COLADO, VIBRADO, CURADO, PERFILADO, CHAFLANES, GOTERO, LIMPIEZA, HERRAMIENTAS, MATERIALES, DESPERDICIOS Y MANO DE OBRA.","ML ","49.6500",0,"CERO PESOS 00/100 M.N.",0,334273]
[382685,"REPISON DE CONCRETO F'C= 150 KG/CM2, CON FORMA TRAPEZOIDAL SECCION DE 50 CM. DE ANCHO X 10 CM. DE ESPESOR EN LOS EXTREMOS Y 15 CM. AL CENTRO DE LA SECCION, ARMADO CON 1 VARILLA DEL # 3 @ 20 CM EN AMBAS DIRECCIONES, CON DETALLES Y MOLDURAS, INCLUYE: CIMBRA APARENTE, DESCIMBRADO, CHAFLANES, COLADO, CURADO, VIBRADO, PERFILADO, DESPERDICIOS, ACABADO PULIDO FINO Y/O CON BROCHA DE PELO, HERRAMIENTA, MANO DE OBRA Y TODO LO NECESARIO PARA SU CORRECTA EJECUCION.","ML ","24.8000",0,"CERO PESOS 00/100 M.N.",0,334278]
["33B.06(393)","PINTURA                                           ",null,null,null,null,{"$f":"TEXT(SUM(G184:G185), \"$ #,##0.00 ;\")","v":"$ 0.00 "}]
[393022,"PINTURA VINIL-ACRÍLICA A BASE DE AGUA ACABADO SEMIMATE  LAVABLE, PARA INTERIORES Y EXTERIORES QUE NO DESPRENDA VAPORES TÓXICOS NI OLORES DESAGRADABLES, CON LAS SIGUIENTES CARACTERÍSTICAS ( SÓLIDOS POR PESO 46-52%, SÓLIDOS POR VOLUMEN 30-36%, VISCOSIDAD DE 100-130 UK A 25°C, DENSIDAD > O = 1.2 TON/M3., LAVABILIDAD > O = 4,000 CICLOS, TIEMPO DE SECADO AL TACTO, 30-40 MIN., TIEMPO DE SECADO DURO < O = 8 HRS., CICLO DE CURADO DE 7 DIAS, PH 6-8, RENDIMIENTO EN SUP. LISA 8-10 M2/LT., FINEZA DE MOLIDO (HEGMAN) 3-7 UH.)  EN MUROS APLANADOS DE MEZCLA APALILLADO O PULIDO, TRABAJO TERMINADO, A DOS MANOS, INCLUYE: MATERIALES MENORES Y DE CONSUMO, ANDAMIOS, PREPARACION DE LA SUPERFICIE, SELLADO DE LA SUPERFICIE, HERRAMIENTAS, LIMPIEZA, MANO DE OBRA Y  ACARREOS DE MATERIALES AL SITIO DE SU UTILIZACIÓN.","M2 ","128.2500",0,"CERO PESOS 00/100 M.N.",0,334279]
[393325,"PINTURA DE ESMALTE ALQUIDALICO ANTICORROSIVO, ACABADO BRILLANTE, PARA INTERIORES Y EXTERIORES QUE NO DESPRENDA VAPORES TÓXICOS NI OLORES DESAGRADABLES, CON LAS SIGUIENTES CARACTERÍSTICAS ( SÓLIDOS POR PESO 49-60%, SÓLIDOS POR VOLUMEN 40-46%, VISCOSIDAD DE 110-160 UK A 25°C, DENSIDAD 0.9-1.2 TON/M3., BRILLO A 60°C, 90%, TIEMPO DE SECADO AL TACTO, < O = 6 HRS., TIEMPO DE SECADO DURO < O = 24 HRS., ADHERENCIA 100%, DILUCIÓN MÁXIMA (AGUARRÁS, THINER), 15 %,  EN BARANDAL METALICO, EN COLOR DE ACUERDO A INDICADO POR SUPERVISIÓN MEDIDO POR UN SOLO LADO, TRABAJO TERMINADO, A DOS MANOS, INCLUYE: MATERIALES MENORES Y DE CONSUMO, PREPARACION DE LA SUPERFICIE, ANDAMIOS, HERRAMIENTAS, LIMPIEZA, MANO DE OBRA Y  EQUIPO DE SEGURIDAD. CUALQUIER ALTURA..","M2 ","57.8500",0,"CERO PESOS 00/100 M.N.",0,334281]
["33B.07(410)","CANCELERIA, HERRERIA, ALUMINIO, VIDRIOS Y CHAPAS  ",null,null,null,null,{"$f":"TEXT(SUM(G187:G188), \"$ #,##0.00 ;\")","v":"$ 0.00 "}]
[192352,"SUMINISTRO Y COLOCACION DE PLACA DE ACERO A-36 DE 4\" X 4\" X 1/4\" PARA FIJACION DE PASAMANOS O BARANDAL A MURO, ESTRUCTURA Y/O CIMENTACION, INCLUYE: MATERIALES, ANCLAS DE ANGULO, CORTES, FIJACION, SOLDADURA, HERRAMIENTAS Y MANO DE OBRA.\n","PZA","50.0000",0,"CERO PESOS 00/100 M.N.",0,334284]
[412006,"SUMINISTRO, FABRICACION Y COLOCACION DE HERRERIA TUBULAR Y/O ESTRUCTURAL PARA BARANDAL O PASAMANOS,  INCLUYE: SOLDADURA, CORTES, AJUSTES, MATERIALES MENORES, DESCALIBRES, DESPERDICIOS, BISAGRAS, FONDO ANTICORROSIVO, FLETES, HERRAMIENTAS, MANO DE OBRA, Y ACARREO DE MATERIALES AL SITIO DE SU UTLIZACION.","KG ","785.0000",0,"CERO PESOS 00/100 M.N.",0,334285]
[69,"RAMPAS",null,null,null,null,{"$f":"TEXT(SUM(G190 + G196 + G202 + G204 + G206 + G208 + G210), \"$ #,##0.00 ;\")","v":"$ 0.00 "}]
["69.01(150)","TRABAJOS PRELIMINARES                             ",null,null,null,null,{"$f":"TEXT(SUM(G191:G195), \"$ #,##0.00 ;\")","v":"$ 0.00 "}]
[150020,"LIMPIEZA DE TERRENO RETIRANDO BASURA Y DESHIERBE FUERA DE LA OBRA. INCLUYE: HERRAMIENTAS, MANO DE OBRA, RECOLECCION, JUNTA Y RETIRO. (PROYECCION DE CUBIERTA).","M2 ","38.6000",0,"CERO PESOS 00/100 M.N.",0,334234]
[150120,"TRAZO Y NIVELACION DE EXTERIORES ESTABLECIENDO REFERENCIAS DEFINITIVAS, CON TRANSITO Y NIVEL (EQUIPO TOPOGRAFICO), INCLUYE: PERSONAL TECNICO CALIFICADO, ESTACAS, MOJONERAS, LOCALIZACION DE EJES Y/O ENTRE EJES, BANCOS DE NIVEL, MATERIALES PARA SEÑALAMIENTO, EQUIPO, HERRAMIENTA Y MANO DE OBRA.","M2 ","38.6000",0,"CERO PESOS 00/100 M.N.",0,334237]
[150210,"DESPALME DE TERRENO NATURAL POR CUALQUIER MEDIO, CON ESPESOR PROMEDIO DE 20 CM. INCLUYE: CARGA Y ACARREO DEL PRODUCTO FUERA DE LA OBRA, MANO DE OBRA, HERRAMIENTA Y EQUIPO. (PROYECCION DE CUBIERTA).","M2 ","38.6000",0,"CERO PESOS 00/100 M.N.",0,334239]
[152404,"EXCAVACION A CIELO ABIERTO EN CAJON POR CUALQUIER MEDIO, MATERIAL TIPO \"B\", DE 0 A 2.00 M. DE PROFUNDIDAD, EN SECO, INCLUYE: AFINE DE TALUDES Y FONDO, TRAPALEOS,  MOVIMIENTOS Y ACARREOS DENTRO DE LA OBRA, HERRAMIENTAS Y MANO DE OBRA, MEDIDO EN BANCO.","M3 ","5.9500",0,"CERO PESOS 00/100 M.N.",0,334243]
[156002,"CARGA POR CUALQUIER MEDIO Y ACARREO EN CAMION DE MATERIAL DE DESPERDICIO PRODUCTO DE LAS EXCAVACIONES FUERA DE LA OBRA, A LUGAR PERMITIDO POR LAS AUTORIDADES CORRESPONDIENTES, MEDIDO EN BANCO. INCLUYE CARGA,  ACARREO Y DESCARGA A TIRO LIBRE, HERRAMIENTA, EQUIPO, MATERIALES DE CONSUMO Y MANO DE OBRA.","M3 ","5.9500",0,"CERO PESOS 00/100 M.N.",0,334246]
["69.02(160)","CIMENTACION                                       ",null,null,null,null,{"$f":"TEXT(SUM(G197:G201), \"$ #,##0.00 ;\")","v":"$ 0.00 "}]
[162002,"CIMIENTO DE PIEDRA BRAZA ACOMODADA PIEDRA POR PIEDRA, ASENTADA CON MORTERO CEMENTO-ARENA  EN PROPORCION 1:3. INCLUYE: MATERIALES, DESPERDICIOS, HERRAMIENTAS, LIMPIEZA, MANO DE OBRA Y ACARREO DE MATERIALES AL SITIO DE SU UTILIZACION.","M3 ","8.2500",0,"CERO PESOS 00/100 M.N.",0,334249]
[162302,"RODAPIE DE PIEDRA BRAZA, ACABADO APARENTE UNA CARA, ASENTADA CON MORTERO CEMENTO-ARENA 1:3. INCLUYE: MATERIALES, HERRAMIENTAS, PLOMEO,   LIMPIEZA, MANO DE OBRA Y ACARREO DE MATERIALES AL SITIO DE SU UTILIZACION.","M3 ","5.1500",0,"CERO PESOS 00/100 M.N.",0,334252]
[162404,"NIVELACION DE MURO DE MAMPOSTERIA CON RAJUELA DE PIEDRA BRAZA JUNTEADA CON MORTERO CEM-ARE 1:3. DE 0.10 M. DE ESPESOR X 0.40 M. DE ANCHO PROMEDIO. INCLUYE: NIVELACION, TRAZO, MANO DE OBRA Y HERRAMIENTA. (NO INCLUYE MATERIALES)","ML ","51.4500",0,"CERO PESOS 00/100 M.N.",0,334255]
[180102,"RELLENO COMPACTADO AL 90 % PROCTOR, CON MATERIAL DE BANCO, EN CAPAS DE 20 CM DE ESPESOR, AGREGANDO AGUA PARA LOGRAR SU HUMEDAD OPTIMA, AL 90%. POR CUALQUIER MEDIO, INCLUYE: SUMINISTRO DE AGUA PARA LOGRAR HUMEDAD OPTIMA, TENDIDO, TRASPALEOS,  DESPERDICIOS, EQUIPO, PRUEBAS DE COMPACTACION, AFINE, NIVELACION, HERRAMIENTAS, MANO DE OBRA Y  ACARREO HASTA EL SITIO DE SU COLOCACION.  (VOLUMEN MEDIDO COMPACTADO).","M3 ","13.6500",0,"CERO PESOS 00/100 M.N.",0,334259]
[192360,"SUMINISTRO E INSTALACION DE CASQUILLO A BASE DE PTR DE 2 1/2\" X 2 1/2\" BLANCO,  Y 10 CM DE LONGITUD APROXIMADA, PARA RICIBIR DE BARANDAL METALICO,  AHOGADO EN LOSA DE CONCRETO, INCLUYE: TRAZO, CORTES, AJUSTES, NIVELACION, MATERIALES, HERRAMIENTAS,  LIMPIEZA Y MANO DE OBRA.","PZA","46.0000",0,"CERO PESOS 00/100 M.N.",0,334262]
["69.03(310)","MUROS, CADENAS, CASTILLOS Y REPIZONES.            ",null,null,null,null,{"$f":"TEXT(SUM(G203:G203), \"$ #,##0.00 ;\")","v":"$ 0.00 "}]
[310512,"DALA DE CONCRETO F'C=150 KG/CM2, T.M.A.=3/4\", CON SECCION DE 10 X 12 CMS., SIN ARMAR, INCLUYE: COLADO, CURADO, VIBRADO, CIMBRA APARENTE, DESCIMBRA, DESPERDICIOS, MANO DE OBRA, HERRAMIENTA, LIMPIEZA DEL AREA DE TRABAJO Y ACARREO DE MATERIALES AL SITIO DE SU UTILIZACION, A CUALQUIER ALTURA.","ML ","51.4500",0,"CERO PESOS 00/100 M.N.",0,334265]
["69.04(372)","PISOS                                             ",null,null,null,null,{"$f":"TEXT(SUM(G205:G205), \"$ #,##0.00 ;\")","v":"$ 0.00 "}]
[375242,"FORJADO DE RAMPA PARA MINUSVALIDOS FABRICADO A BASE DE CONCRETO F'C=150 KG/CM2. T.M.A. 3/4\" HECHO EN OBRA DE 0.10 MT. DE ESPESOR  PROMEDIO DANDO PENDIENTE DEL 6%. INCLUYE: HERRAMIENTAS, ACABADO RAYADO,  CIMBRA DESCIMBRA, MANO DE OBRA, REMATE EN PISO Y BANQUETA, ACARREO DEL  MATERIALES AL SITIO DE SU UTILIZACION.","M2 ","38.6000",0,"CERO PESOS 00/100 M.N.",0,334275]
["69.05(393)","PINTURA                                           ",null,null,null,null,{"$f":"TEXT(SUM(G207:G207), \"$ #,##0.00 ;\")","v":"$ 0.00 "}]
[393324,"PINTURA DE ESMALTE ALQUIDALICO ANTICORROSIVO, ACABADO BRILLANTE, PARA INTERIORES Y EXTERIORES QUE NO DESPRENDA VAPORES TÓXICOS NI OLORES DESAGRADABLES, CON LAS SIGUIENTES CARACTERÍSTICAS ( SÓLIDOS POR PESO 49-60%, SÓLIDOS POR VOLUMEN 40-46%, VISCOSIDAD DE 110-160 UK A 25°C, DENSIDAD 0.9-1.2 TON/M3., BRILLO A 60°C, 90%, TIEMPO DE SECADO AL TACTO, < O = 6 HRS., TIEMPO DE SECADO DURO < O = 24 HRS., ADHERENCIA 100%, RENDIMIENTO EN SUP. LISA 8-10 M2/LT., DILUCIÓN MÁXIMA (AGUARRÁS, THINER), 15 %,   EN TUBO DE FIERRO NEGRO DE 2\" DE DIÁMETRO, (POSTES, PASAMANOS, BARANDALES, ESTRUCTURAS, REDES, ETC.), TRABAJO TERMINADO, A DOS MANOS, INCLUYE: MATERIALES MENORES Y DE CONSUMO, PREPARACION DE LA SUPERFICIE, ANDAMIOS, HERRAMIENTAS, LIMPIEZA, MANO DE OBRA Y  EQUIPO DE SEGURIDAD. CUALQUIER ALTURA.","ML ","216.0500",0,"CERO PESOS 00/100 M.N.",0,334280]
["69.06(396)","LIMPIEZA                                          ",null,null,null,null,{"$f":"TEXT(SUM(G209:G209), \"$ #,##0.00 ;\")","v":"$ 0.00 "}]
[396012,"LIMPIEZA DE PISOS DE CONCRETO CON AGUA Y ACIDO MURIATICO AL 10%.","M2 ","38.6000",0,"CERO PESOS 00/100 M.N.",0,334283]
["69.07(410)","CANCELERIA, HERRERIA, ALUMINIO, VIDRIOS Y CHAPAS  ",null,null,null,null,{"$f":"TEXT(SUM(G211:G211), \"$ #,##0.00 ;\")","v":"$ 0.00 "}]
[412006,"SUMINISTRO, FABRICACION Y COLOCACION DE HERRERIA TUBULAR Y/O ESTRUCTURAL PARA BARANDAL O PASAMANOS,  INCLUYE: SOLDADURA, CORTES, AJUSTES, MATERIALES MENORES, DESCALIBRES, DESPERDICIOS, BISAGRAS, FONDO ANTICORROSIVO, FLETES, HERRAMIENTAS, MANO DE OBRA, Y ACARREO DE MATERIALES AL SITIO DE SU UTLIZACION.","KG ","460.4000",0,"CERO PESOS 00/100 M.N.",0,334286]
["02","RED ELECTRICA",null,null,null,null,{"$f":"TEXT((G213), \"$ #,##0.00 ;\")","v":"$ 0.00 "}]
["02.01(511)","INSTALACION ELECTRICA EN OBRA EXTERIOR            ",null,null,null,null,{"$f":"TEXT(SUM(G214:G227), \"$ #,##0.00 ;\")","v":"$ 0.00 "}]
[534004,"SUMINISTRO Y TENDIDO DE TUBO CONDUIT DE P.V.C. PESADO, DE 19 MM DIAM. INCLUYE: CONEXIONES, TRAZO, EXCAVACION, RELLENO, DESPERDICIOS, MATERIALES MENORES, PRUEBAS Y ACARREO AL SITIO DE SU COLOCACION.","ML ","20.0000",0,"CERO PESOS 00/100 M.N.",0,334287]
[534008,"SUMINISTRO Y TENDIDO DE TUBO CONDUIT DE P.V.C. PESADO, DE 32 MM DIAM. INC.: CONEXIONES, TRAZO, EXCAVACION, RELLENO, DESPERDICIOS, MATERIALES MENORES, PRUEBAS Y ACARREO AL SITIO DE SU COLOCACION.","ML ","80.0000",0,"CERO PESOS 00/100 M.N.",0,334288]
[536008,"SUMINISTRO Y COLOCACION DE CABLE VINANEL THW-LS 600 V. A 75° C, 90° C, MARCA CONDUCTORES MONTERREY, (VIAKON-PROTOCOLIZADO), CABLE VINANEL 21 THW-LS 600 V. A 75° C, 90° C, MARCA CONDUMEX (CONDUMEX PROTOCOLIZADO). CAL. 10,  INCLUYE: DESPERDICIOS, MATERIALES MENORES, HERRAMIENTA, CONEXIONES, MANO DE OBRA ESPECIALIZADA, LIMPIEZA DEL AREA DE TRABAJO, PRUEBAS Y ACARREO AL SITIO DE SU COLOCACION.","ML ","44.0000",0,"CERO PESOS 00/100 M.N.",0,334289]
[536010,"SUMINISTRO Y COLOCACION DE CABLE VINANEL THW-LS 600 V. A 75° C, 90° C, MARCA CONDUCTORES MONTERREY, (VIAKON-PROTOCOLIZADO), CABLE VINANEL 21 THW-LS 600 V. A 75° C, 90° C, MARCA CONDUMEX (CONDUMEX PROTOCOLIZADO). CAL. 8,  INCLUYE: DESPERDICIOS, MATERIALES MENORES, HERRAMIENTA, CONEXIONES, MANO DE OBRA ESPECIALIZADA, LIMPIEZA DEL AREA DE TRABAJO, PRUEBAS Y ACARREO AL SITIO DE SU COLOCACION.","ML ","176.0000",0,"CERO PESOS 00/100 M.N.",0,334290]
[536012,"SUMINISTRO Y COLOCACION DE CABLE VINANEL THW-LS 600 V. A 75° C, 90° C, MARCA CONDUCTORES MONTERREY, (VIAKON-PROTOCOLIZADO), CABLE VINANEL 21 THW-LS 600 V. A 75° C, 90° C, MARCA CONDUMEX (CONDUMEX PROTOCOLIZADO). CAL. 6,  INCLUYE: DESPERDICIOS, MATERIALES MENORES, HERRAMIENTA, CONEXIONES, MANO DE OBRA ESPECIALIZADA, LIMPIEZA DEL AREA DE TRABAJO, PRUEBAS Y ACARREO AL SITIO DE SU COLOCACION.","ML ","88.0000",0,"CERO PESOS 00/100 M.N.",0,334291]
[537108,"SUMINISTRO Y COLOCACION DE CABLE DE COBRE DESNUDO CAL. 10, AWG, MCA. CONDUMEX, CONELEC O CONDUCTORES MONTERREY. INCLUYE: DESPERDICIOS, MATERIALES MENORES, PRUEBAS Y ACARREO AL SITIO DE SU COLOCACION.","ML ","22.0000",0,"CERO PESOS 00/100 M.N.",0,334292]
[537112,"SUMINISTRO Y COLOCACION DE CABLE DE COBRE DESNUDO CAL. 8, AWG, MCA. CONDUMEX, CONELEC O CONDUCTORES MONTERREY. INCLUYE: DESPERDICIOS, MATERIALES MENORES, PRUEBAS Y ACARREO AL SITIO DE SU COLOCACION.","ML ","88.0000",0,"CERO PESOS 00/100 M.N.",0,334293]
[543020,"SUMINISTRO Y COLOCACION DE INTERRUPTOR TERMOMAGNETICO CON 2 POLOS, DE 15-50 AMPERES, MCA. SQUARE D, CAT. QO. INCLUYE: PRUEBAS, FLETES, MATERIALES MENORES Y ACARREO DE MATERIALES AL SITIO DE SU COLOCACION.","PZA","1.0000",0,"CERO PESOS 00/100 M.N.",0,334294]
[552022,"SUMINISTRO E INSTALACION DE FOTOCELDA CON BASE DE 1000 WATTS. 220 VOLTS.  INC.: MATERIALES MENORES, PRUEBAS Y ACARREO DE MATERIALES AL SITIO DE SU COLOCACION.","PZA","1.0000",0,"CERO PESOS 00/100 M.N.",0,334295]
[552220,"SUMINISTRO E INSTALACION DE LUMINARIO PUNTA DE POSTE MCA. ATP ILUMINACION,  MODELO LIBRA, CARCASA FABRICADA CON POLIMEROS REFORZADOS S7 DE ULTIMA GENERACION, DIFUSOR DE TERMO-POLIMERO TRANSPARENTE TROPICALIZADO DE ALTO IMPACTO T5, RESISTENTE A LA CORROSION Y HUMEDAD, HERMETICIDAD  IP66, RESISTENTE A GOLPES POR VANDALISMO NORMA IK10,  LAMPARA DE 55 WATTS, FORMADA POR UN MÓDULO DE 24 LED CERAMICOS DE ALTA POTENCIA, OPTICA S1, TEMPERATURA DE COLOR DE 4000 °K, DRIVER ELECTRONICO INTEGRADO, VOLTAJE DE OPERACION 220-240 V /60HZ, INCLUYE: LAMPARA, MATERIALES MENORES Y DE CONSUMO, ELEMENTOS DE FIJACION, COPLE DE ADAPTACION A POSTE, HERRAMIENTA, ANDAMIOS, CONEXIONES, CONECTORES, GARANTÍA POR ESCRITO DE 10 AÑOS, MANO DE OBRA ESPECIALIZADA, LIMPIEZA DEL AREA DE TRABAJO, PRUEBAS, DESPERDICIOS Y ACARREO DEL MATERIAL AL SITIO DE SU COLOCACION, A CUALQUIER ALTURA.","PZA","1.0000",0,"CERO PESOS 00/100 M.N.",0,334296]
[555022,"SUMINISTRO Y COLOCACION DE POSTE DE FIERRO CONICO CIRCULAR DE 6.00 MTS. DE ALTURA CON PINTURA ANTICORROSIVA Y PINTURA DE ESMALTE DE ACABADO EN COLOR VERDE JARDIN, INCLUYE; BASE DE CONCRETO F'C=200 KG/CM2 TRAPEZOIDAL DE 60 X 60 CMS. DE BASE INFERIOR, 40 X 40 CMS, BASE SUPERIOR, Y 80 CMS. DE ALTURA, ANCLAS, Y REGISTRO ELECTRICO DE CONCRETO PREFABRICADA DE 33 X 33 X 40 CM. INTERCONECTADO A BASE Y POSTE CON TUBO DE P.V.C. PESADO DE 25 MM. DE DIAMETRO,  CABLE VINANEL THW-LS 600 V. A 75° C, 90° C, MARCA CONDUCTORES MONTERREY, (VIAKON-PROTOCOLIZADO), CABLE VINANEL 21 THW-LS 600 V. A 75° C, 90° C, MARCA CONDUMEX (CONDUMEX PROTOCOLIZADO).  CAL. 10, MATERIALES MENORES, PRUEBAS Y ACARREO DEL MATERIAL AL SITIO DE SU COLOCACION.","PZA","1.0000",0,"CERO PESOS 00/100 M.N.",0,334297]
[558521,"SUMINISTRO Y COLOCACION DE VARILLA DE TIERRA COOPERWELD, DE 3.00 M X 16 MM DE DIAM.  INCLUYE:  1 CARGA CADWELD No. 90. 3 MTS DE CABLE DE COBRE DESNUDO SEMIDURO CAL. 2 AWG. PARTE PROPORCIONAL DE MOLDE 161V.   MATERIALES MENORES, HERRAMIENTAS, MANO DE OBRA,  PRUEBAS Y ACARREO AL SITIO DE SU COLOCACION.","PZA","2.0000",0,"CERO PESOS 00/100 M.N.",0,334298]
[880618,"SUMINISTRO Y COLOCACION DE REGISTRO ELECTRICO PARA ALUMBRADO, PREFABRICADO  DE 0.40 X 0.40 X 0.60 MTS. CON TAPA DE CONCRETO,  MARCO Y CONTRAMARCO DE FIERRO GALVANIZADO, INCLUYE: TRAZO, EXCAVACION, TAPA DE CONCRETO CON MARCO Y CONTRAMARCO DE ANGULO, RELLENO, FILTRO DE GRAVA, HERRAMIENTAS, MANO DE OBRA, FLETES, ACARREO AL SITIO DE SU COLOCACION Y LIMPIEZA DEL AREA DE TRABAJO.","PZA","1.0000",0,"CERO PESOS 00/100 M.N.",0,334299]
[880621,"SUMINISTRO Y COLOCACION DE REGISTRO ELECTRICO DE CONCRETO, PREFABRICADO, PARA BAJA TENSION TIPO 1 NORMA C.F.E.- RBTB-1 DE 50 X 80 X 65 CM., CON TAPA DE CONCRETO,  MARCO Y CONTRAMARCO  DE ACERO GALVANIZADO, INCLUYE: TRAZO, EXCAVACION, RELLENOS COMPACTADOS, FILTRO DE GRAVA, RESANADO FINO DE TUBERIAS EN SU INTERIOR, HERRAMIENTAS, MANO DE OBRA, FLETES, ACARREO AL SITIO DE SU COLOCACION Y LIMPIEZA DEL AREA DE TRABAJO.","PZA","8.0000",0,"CERO PESOS 00/100 M.N.",0,334300]
["06","POZO DE ABSORCION",null,null,null,null,{"$f":"TEXT((G229), \"$ #,##0.00 ;\")","v":"$ 0.00 "}]
["06.01(565)","INSTALACION HIDRAULICA, SANITARIA Y GAS EN O. EXT.",null,null,null,null,{"$f":"TEXT(SUM(G230:G230), \"$ #,##0.00 ;\")","v":"$ 0.00 "}]
[597020,"POZO DE ABSORCION DE 1.00 MTS. DE DIAMETRO X 2.00 MTS. DE PROFUNDIDAD, MEDIDAS INTERIORES, CON MURO DE LADRILLO HUACALEADO, INCLUYE: TRAZO, EXCAVACION, RELLENO Y TAPA DE CONCRETO ARMADO, ( VER PLANO ), FILTRO LATERAL CON GRAVA, EXCAVACION, ADEMES, CONEXIONES DEL POZO DE ABSORCION A LOS 2 REGISTROS CON 7 MTS. DE TUBO DE P.V.C. DE 4\" DE DIAMETRO Y ACARREOS DEL MATERIAL EXCEDENTE FUERA DE LA OBRA.","PZA","2.0000",0,"CERO PESOS 00/100 M.N.",0,334302]
[null,"RESUMEN DE PARTIDAS"]
["BAS-CONA-06039","CONSTRUCCIÓN DE DOS AULAS DIDÁCTICAS, MURO-REJA PERIMETRAL, PATIO CÍVICO, OBRAS DE ACCESIBILIDAD E INSTALACIONES EN OBRA EXTERIOR EN EL CENTRO DE ATENCIÓN MÚLTIPLE EMMA GODOY LOBATO CCT 14EML0037V, UBICADO EN LA LOCALIDAD  CAJITITLÁN, MUNICIPIO DE TLAJOMULCO DE ZÚÑIGA, JALISCO.",null,null,null,null,{"$f":"G17","v":"$ 0.00 "}]
["D","EDIFICIO D",null,null,null,null,{"$f":"G18","v":"$ 0.00 "}]
["D.01(140)","DEMOLICIONES, DESMONTAJES Y MECANICA DE SUELOS    ",null,null,null,null,{"$f":"G19","v":"$ 0.00 "}]
["D.02(150)","TRABAJOS PRELIMINARES                             ",null,null,null,null,{"$f":"G23","v":"$ 0.00 "}]
["D.03(160)","CIMENTACION                                       ",null,null,null,null,{"$f":"G30","v":"$ 0.00 "}]
["D.04(200)","ESTRUCTURA                                        ",null,null,null,null,{"$f":"G50","v":"$ 0.00 "}]
["D.05(310)","MUROS, CADENAS, CASTILLOS Y REPIZONES.            ",null,null,null,null,{"$f":"G63","v":"$ 0.00 "}]
["D.06(319)","ENTREPISOS, CUBIERTA Y ACABADOS DE AZOTEA         ",null,null,null,null,{"$f":"G74","v":"$ 0.00 "}]
["D.07(355)","RECUBRIMIENTOS Y ACABADOS                         ",null,null,null,null,{"$f":"G76","v":"$ 0.00 "}]
["D.08(372)","PISOS                                             ",null,null,null,null,{"$f":"G80","v":"$ 0.00 "}]
["D.09(393)","PINTURA                                           ",null,null,null,null,{"$f":"G93","v":"$ 0.00 "}]
["D.10(396)","LIMPIEZA                                          ",null,null,null,null,{"$f":"G99","v":"$ 0.00 "}]
["D.11(410)","CANCELERIA, HERRERIA, ALUMINIO, VIDRIOS Y CHAPAS  ",null,null,null,null,{"$f":"G103","v":"$ 0.00 "}]
["D.12(510)","INSTALACION ELECTRICA EN EDIFICIO                 ",null,null,null,null,{"$f":"G110","v":"$ 0.00 "}]
["D.13(530)","EQUIPOS E INSTALACIONES DE REDES DE VOZ Y DATOS.  ",null,null,null,null,{"$f":"G120","v":"$ 0.00 "}]
["01","PLAZA Y ANDADORES",null,null,null,null,{"$f":"G122","v":"$ 0.00 "}]
["01.01(140)","DEMOLICIONES, DESMONTAJES Y MECANICA DE SUELOS    ",null,null,null,null,{"$f":"G123","v":"$ 0.00 "}]
["01.02(150)","TRABAJOS PRELIMINARES                             ",null,null,null,null,{"$f":"G125","v":"$ 0.00 "}]
["01.03(160)","CIMENTACION                                       ",null,null,null,null,{"$f":"G132","v":"$ 0.00 "}]
["01.04(372)","PISOS                                             ",null,null,null,null,{"$f":"G139","v":"$ 0.00 "}]
["01.05(396)","LIMPIEZA                                          ",null,null,null,null,{"$f":"G146","v":"$ 0.00 "}]
[52,"CANALES PARA AGUAS PLUVIALES",null,null,null,null,{"$f":"G148","v":"$ 0.00 "}]
["52.01(140)","DEMOLICIONES, DESMONTAJES Y MECANICA DE SUELOS    ",null,null,null,null,{"$f":"G149","v":"$ 0.00 "}]
["52.02(568)","INSTALACION RED PLUVIAL                           ",null,null,null,null,{"$f":"G151","v":"$ 0.00 "}]
["07","FOSA SEPTICA",null,null,null,null,{"$f":"G154","v":"$ 0.00 "}]
["07.01(140)","DEMOLICIONES, DESMONTAJES Y MECANICA DE SUELOS    ",null,null,null,null,{"$f":"G155","v":"$ 0.00 "}]
["07.02(565)","INSTALACION HIDRAULICA, SANITARIA Y GAS EN O. EXT.",null,null,null,null,{"$f":"G157","v":"$ 0.00 "}]
["33B","MURO REJA",null,null,null,null,{"$f":"G160","v":"$ 0.00 "}]
["33B.01(150)","TRABAJOS PRELIMINARES                             ",null,null,null,null,{"$f":"G161","v":"$ 0.00 "}]
["33B.02(160)","CIMENTACION                                       ",null,null,null,null,{"$f":"G166","v":"$ 0.00 "}]
["33B.03(310)","MUROS, CADENAS, CASTILLOS Y REPIZONES.            ",null,null,null,null,{"$f":"G173","v":"$ 0.00 "}]
["33B.04(355)","RECUBRIMIENTOS Y ACABADOS                         ",null,null,null,null,{"$f":"G177","v":"$ 0.00 "}]
["33B.05(372)","PISOS                                             ",null,null,null,null,{"$f":"G180","v":"$ 0.00 "}]
["33B.06(393)","PINTURA                                           ",null,null,null,null,{"$f":"G183","v":"$ 0.00 "}]
["33B.07(410)","CANCELERIA, HERRERIA, ALUMINIO, VIDRIOS Y CHAPAS  ",null,null,null,null,{"$f":"G186","v":"$ 0.00 "}]
[69,"RAMPAS",null,null,null,null,{"$f":"G189","v":"$ 0.00 "}]
["69.01(150)","TRABAJOS PRELIMINARES                             ",null,null,null,null,{"$f":"G190","v":"$ 0.00 "}]
["69.02(160)","CIMENTACION                                       ",null,null,null,null,{"$f":"G196","v":"$ 0.00 "}]
["69.03(310)","MUROS, CADENAS, CASTILLOS Y REPIZONES.            ",null,null,null,null,{"$f":"G202","v":"$ 0.00 "}]
["69.04(372)","PISOS                                             ",null,null,null,null,{"$f":"G204","v":"$ 0.00 "}]
["69.05(393)","PINTURA                                           ",null,null,null,null,{"$f":"G206","v":"$ 0.00 "}]
["69.06(396)","LIMPIEZA                                          ",null,null,null,null,{"$f":"G208","v":"$ 0.00 "}]
["69.07(410)","CANCELERIA, HERRERIA, ALUMINIO, VIDRIOS Y CHAPAS  ",null,null,null,null,{"$f":"G210","v":"$ 0.00 "}]
["02","RED ELECTRICA",null,null,null,null,{"$f":"G212","v":"$ 0.00 "}]
["02.01(511)","INSTALACION ELECTRICA EN OBRA EXTERIOR            ",null,null,null,null,{"$f":"G213","v":"$ 0.00 "}]
["06","POZO DE ABSORCION",null,null,null,null,{"$f":"G228","v":"$ 0.00 "}]
["06.01(565)","INSTALACION HIDRAULICA, SANITARIA Y GAS EN O. EXT.",null,null,null,null,{"$f":"G229","v":"$ 0.00 "}]
[]
["IMPORTE CON LETRA (IVA INCLUIDO)",null,null,null,null,"SUBTOTAL M.N.",{"$f":"TEXT(G17,  \"$ #,##0.00 ;\")","v":"$ 0.00 "}]
[{"$f":"UPPER(CONVERTIRNUM(ROUND( G17 * 1.16, 2)))","v":"CERO PESOS 00/100 M.N."},null,null,null,null,"IVA M.N.",{"$f":"TEXT(ROUND( G17 * 0.16, 2),  \"$ #,##0.00 ;\")","v":"$ 0.00 "}]
[null,null,null,null,null,"TOTAL M.N.",{"$f":"TEXT(ROUND( G17 * 1.16, 2),  \"$ #,##0.00 ;\")","v":"$ 0.00 "}]